{"text_format":"1","workbook":"xlsx","n_sheets":5,"sheets":["Read me First","Request Guidance","Request Form","Providers","Summary"],"not_rendered":{"charts":0,"images":3,"macros":1,"external_links":0,"defined_names":6,"comments":0,"pivot_tables":0},"unopened":[],"bounds":{"document_bytes":16777216,"sheet_cells":100000,"rows_first":2000,"rows_last":500,"rows_between":2000,"halvings":0,"cell_chars":16384,"cell_head_chars":4096},"cells_cut":0,"cells_raw":0,"read":"whole","date_system":"1900"}

{"sheet":"Read me First","index":0,"n_rows":79,"n_cols":2,"rows_kept":79,"cut":false,"hidden":false,"merged":[]}
[]
[null,"BACKGROUND"]
[null,"The ESFA would like to increase the opportunities available to 16 to 18-year-olds who would benefit from a traineeship programme. We are therefore offering providers the opportunity to apply for a standalone traineeship contract to deliver traineeships to 16 to 18-year-olds. The new contracts are each worth up to £300,000 per provider and are on standard terms, subject to meeting the relevant eligibility criteria. Traineeships delivered under the new contracts are exclusively for 16 to 18-year-olds. \n\nTo apply for a new traineeship contract, you must meet the eligibility criteria, be an existing provider and you must submit a full and complete application by 5pm on 22 October 2021 to be considered for a contract. The deadline of 5pm on 22 October 2021 will be strictly applied, as we will not accept any applications received after the deadline. We recommend you submit your application in advance to avoid any delay that could lead to missing the submission deadline or failing to complete the application properly."]
[null,"Traineeships offer a flexible intervention which develops young peoples employment skills and experience to support their progression into an apprenticeship, work or further learning. Full details are set out in the Traineeship Framework for Delivery."]
[]
[null,"Traineeship Framework for delivery"]
[]
[null,"The government wants traineeships to move young people towards work or an apprenticeship more than ever before. The Plan for Jobs included a commitment to provide thousands of new Traineeships to get young people aged 16 to 24 (up to 25 for those with an EHCP) in England into work."]
[]
[null,"To support the expansion of places and better enable delivery of traineeships post covid-19, training organisations shall quickly establish, strong relationships with employers, jobcentres, the National Careers Service (NCS), Local Enterprise Partnerships and other local partners, enabling the contractor and employers to:"]
[]
[null,"* recruit learners to their programme, including through referrals from Jobcentres, the NCS and other local partners;"]
[]
[null,"* work together to tailor theirpProgramme to real-time needs of both the learner and the local labour market; and"]
[]
[null,"* establish and utilise links to lead sector skills bodies where there is an opportunity to establish good practice in delivery of traineeships leading to occupations in that sector. "]
[]
[null,"The contract will provide an opportunity to significantly increase capacity among providers who can drive participation by young people and demand by employers. It is intended to support high quality growth of the programme with funding available to support providers between the service start date 1 December 2021 and the end of the academic year, 31 July 2022."]
[]
[null,"TRAINEESHIP OVERVIEW"]
[]
[null,"16 to 18 traineeships are programmes of activity for young people with qualifications up to and including level 3 and help prepare them for an apprenticeship, other sustainable employment where training is in a workplace or further learning. Traineeships should last for a minimum of 6 weeks and a maximum of 12 months."]
[]
[null,"The core aim of a traineeship is a high-quality work placement with an employer of between 70 and 240 hours, which can be undertaken as multiple shorter placements in different organisations. This would need careful planning to ensure it adds up to the high-quality work experience we expect for all learners. Longer placements may be necessary to prepare learners for work, but these would need to be based on clearly identified learner needs."]
[]
[null,"Providers and employers can bring work preparation training, and English, maths and digital where required, together in the best way to engage and support individual learners. This should be integrated with other support and training, such as mentoring, careers guidance, job search support and sector-focused vocational learning that prepares the learner for occupational standards within apprenticeships. Each trainee should have a learning plan that shows how the different elements of the traineeship, including the work experience placement(s), will come together to meet the young person’s needs and aspiration(s)."]
[]
[null,"We want traineeships to support as many young people as possible into apprenticeships and sustainable employment. Funding has been made available for providers to start or expand traineeship programmes. Providers should ensure opportunities are responsive and available in occupations where there is local employer demand, in the post covid-19 labour market."]
[]
[null,"Further information can be found in the "]
[]
[null,"Traineeship framework for delivery"]
[]
[null,"CONTRACT PERIOD"]
[]
[null,"The initial contract period will be from the service start date 1 December 2021 until 31 July 2022. We intend to communicate future funding allocations under the contract for the 2022 to 2023 delivery in Spring 2022. "]
[]
[null,"FINANCIAL YEAR SPLIT"]
[]
[null,"Please enter the total value of your 16 to 18 traineeship request for the 2021 to 2022 funding year. NOTE – The maximum funding you can apply for is £300,000 for the entire 2021 to 2022 funding year. "]
[]
[null,"The minimum you can apply for is £100,000 for the entire 2021 to 2022 funding year."]
[]
[null,"Your request will be automatically split into financial year values, showing you the amount of 16 to 18 funding available to you for December 2021 to March 2022 and from April 2022 to July 2022"]
[]
[null,"PAYMENT"]
[]
[]
[null,"For 16 to 18 traineeships, funding will follow our funding principles where we will calculate the earnings monthly using validated ILR data. Payments relating to 16 to 18 traineeships will reach bank accounts on the 14th working day of the month. Under Item 5A to Group 6 of Schedule 9 of the VAT Act 1994, the supply of education or vocational training funded by the Department and the supply by the person providing that education or vocational training, of any goods or services essential to that provision, is considered to be an exempt supply for VAT purposes."]
[]
[]
[]
[]
[]
[null,"16 to 19 FUNDING BANDS"]
[]
[null,"The definitions of the bands are based on the annual hours that are planned for a student. Providers should refer to the Funding Regulations document for further information on what hours may be included."]
[null,"Funding regulations"]
[]
[]
[]
[null,"LEARNER ELIGIBILITY (16 to 18 year olds)"]
[]
[null,"The age of the learner on 31 August in the funding year determines whether the learner is funded through ESFA’s AEB funding methodology (for individuals aged 19 and over), or the 16 to 19-year-olds funding methodology. \n\nStudents aged 19 to 24 on the 31 August 2021 that have an Education Health Care Plan (EHC) are eligible for young people’s funding by ESFA. All other students aged 19 and over on 31 August 2021 would not normally be funded at young people’s rates.\n\nFor more information on learner eligibility Funding guidance for young people 2021 to 2022 visit: "]
[null,"Funding Guidance Regulations"]
[]
[null,"FIND A LEARNING AIM"]
[]
[null,"Use the link below to search for specific aims, including qualifications and units and their associated validity and funding details."]
[]
[null,"Find a learning aim"]
[]
[null,"INDIVIDUALISED LEARNER RECORD (ILR)"]
[]
[null,"Information on Individualised Learner record (ILR) technical documents, guidance and requirements: "]
[]
[null,"https://guidance.submit-learner-data.service.gov.uk/"]
[]
[null,"KEY MILESTONES AND DATES"]

{"sheet":"Request Guidance","index":1,"n_rows":40,"n_cols":3,"rows_kept":40,"cut":false,"hidden":false,"merged":[[7,1,7,2],[14,1,14,2],[10,1,12,2]]}
[]
[]
[]
[]
[]
[]
[]
[]
[]
[]
[null,"16 to 18 traineeship market entry 2021 to 2022\n\nProviders can submit a traineeship request form from 29 September to 22 October 2021 to secure a 16 to 18 traineeship only contract. You must complete and submit by 5pm on 22 October 2021. We will not accept a request form received after the deadline or submitted to a different email address. We recommend you submit your application in advance to avoid any delay that could lead to missing the submission deadline.\n\nThe maximum allocation you can apply for is £300,000. The full value of your request is not guaranteed, and your award may be lower than the value you have requested if the total combined level of requests are higher than the funding available. If this happens each provider's allocation will be reduced by an equal percentage.\n\nWe aim to notify all providers of the outcome w/c 15 November 2021, with contracts to start from 1 December 2021.\n\nTo take part in the market entry exercise, a training provider must meet all the following criteria:\n\n▪ have an ESFA contract, funding agreement or grant for the 2021 to 2022 academic year\n▪ have a current Ofsted grade 1 (outstanding) or grade 2 (Good). Alternatively, we will consider existing traineeship providers that have a 19 to 24 traineeship 2021/22 contract without an Ofsted grade 1 or 2\n▪ not be in formal intervention for minimum standards or inspection \n▪ not been issued with a notice to improve, additional conditions of funding or additional contractual obligations prohibiting you from growth\n▪ not be subject to an investigation for breach of contract and/or failed audit in the past 3 years\n▪ not have a financial health grade of inadequate\n\nPlease do not include any personal or sensitive data about your students when submitting your case. Personal data is information relating to a living individual who is, or can be, identified from the data provided. Personal data can be information about the individual, their families or circumstances. This may include names, contact details, gender or date of birth."]
[]
[]
[null,"Returning the form"]
[null,"Once all the required yellow boxes are complete, the completion status will change to COMPLETE.  The macro to send the email will not work unless the Completion Status is COMPLETE. We will validate all information you enter therefore you must ensure it is accurate, any incorrect information may result in exclusion from market entry.\n\nEmail the completed form to Enquiries.ESFA@education.gov.uk or using the online enquiry form. Please ensure the subject title includes your request type. (16 to 18 traineeship market entry)\n\nIf you have enabled the macros, clicking the button at the bottom of the request will automatically create an email and add this form to the email as an attachment. Please ensure you make your territorial manager aware that you have submitted a request for a 16 to 18 traineeship contract.\n\nIf the macro does not work, for some reason, please attach the form to an email manually."]
[null,"Completing the form"]
[]
[null,"Field","Description"]
[null,"Completion status","This box stays INCOMPLETE until all the yellow boxes are complete. Once all the required yellow boxes are complete, it will change to COMPLETE. We will not accept incomplete forms."]
[null,"Provider name","Use the drop-down box to select your provider name from a list. If your provider name is not listed, please email your Territorial Team Manager for advice (please quote your UKPRN)."]
[null,"UK Provider Registration Number (UKPRN)","This box will be completed automatically with your UKPRN as it appears on the UK Register of Learning Providers (UKRLP) once provider name is selected."]
[null,"Funding stream in question","16 to 18 traineeships"]
[null,"Do you currently hold an ESFA contract or funding agreement to deliver in 2021 to 2022?","You must hold an ESFA contract, funding agreement or grant for the 2021 to 2022 academic year.\nYou must select Yes or No.\n*If you have 16 to 18 traineeships without a 16 to 19 study programme funding agreement or a 16 to 19 Study Programme you are not able to request a 16 to 18 traineeship contract as you already have a contract to deliver to this age group."]
[null,"Do you have a 19-24 (procured) 2021/22 traineeship contract?","You must select Yes or No"]
[null,"Do you currently have a contract to deliver 16-19 Study Programme or 16-18 standalone traineeship activity?","You must select Yes or No"]
[null,"What is your current Ofsted grade?","You must select your current Ofsted grade from the drop down menu"]
[null,"Has your current financial health grade been assessed as 'Inadequate' by the ESFA?","You must select Yes or No"]
[null,"Have you been issued with a notice to improve or do you have contractual obligations prohibiting you from growth?","You must select Yes or No"]
[null,"Have you been subject to an investigation for breach of contract and/or failed audit in the past 3 years?","You must select Yes or No"]
[null,"Is this request for direct delivery or subcontracted?","You must select if the funding you are requesting is for Direct Delivery (delivered wholly by you) or Subcontracted"]
[null,"£ Value 2021/22 request","You must enter the value you are requesting. The maximum you can request is £300,000 in total (the minimum you can request is £100,000)"]
[null,"Number of starts","You must enter the planned number of starts you want to engage for the 2021 to 2022 funding year between 1 December 2021 to 31 March 2022 and between 1 April 2022 to 31 July 2022"]
[null,"Supporting Information","You must use the supporting information boxes to provide information about your traineeship programme to satisfy us that it will meet the key objectives of a traineeship. "]
[null,"Supporting Information Text Box 1","You need to provide information to support your request, there is a limit of the amount of characters that can be used.\n\nProvide a description of your delivery model and how this links to your longer term goal for traineeships."]
[null,"Supporting Information Text Box 2","You need to provide information to support your request, there is a limit of the amount of characters that can be used.\n\nProvide details of your capacity and capability to deliver and whether you have evidence of learner demand. This should include details of resources, infrastructure and how you can build the on demand.\n"]
[null,"Supporting Information Text Box 3","You need to provide information to support your request, there is a limit of the amount of characters that can be used.\n\nHow will you work with employers and referral agencies to secure the work placement? This needs to include information on employment sectors and geographical areas for your delivery and where possible employers that are interested in providing traineeship placements.\n"]
[null,"Supporting Information Text Box 4","You need to provide information to support your request, there is a limit of the amount of characters that can be used.\n\nWhat arrangements do you have in place to ensure successful outcomes? how will your offer and enhance the choice and quality of provision for trainees? how will you support trainees in to an apprenticeship, sustainable job or further education?"]
[null,"Authority tick box","You must tick to confirm that you have answered questions truthfully and have the authority to act on behalf of the applicant organisation named in this form. Failure to do so may result in a withdrawal of contract offer or a termintaion of contract."]
[null,"Request completed by","You must ensure you enter your:\nName\nPosition in Organisation\nDate of Request"]
[null,"Email","You must enter the email address for those in your organisation who wish to receive replies or outcome letter"]

{"sheet":"Request Form","index":2,"n_rows":70,"n_cols":10,"rows_kept":70,"cut":false,"hidden":false,"merged":[[2,0,2,7],[3,0,3,7],[30,1,30,2],[31,1,31,2],[63,2,63,7],[32,1,32,2],[43,1,43,7],[47,1,47,7],[51,1,51,7],[55,1,55,7],[45,1,45,9],[49,1,49,9],[69,2,69,7],[8,2,8,7],[10,2,10,3],[17,1,17,2],[17,3,17,7],[65,2,65,7],[67,2,67,4]]}
[]
[null,null,null,null,null,null,null,null,null,"Completion status"]
["Market Entry - 16-18 Traineeships",null,null,null,null,null,null,null,null,{"$f":"IF(COUNTIFS(J6:J75,\"✔\")=COUNTA(J6:J75),\"Complete\",\"Incomplete\")","v":"Incomplete"}]
[]
[null,"Please read the 'Read me First' and 'Request Guidance' before completing this form. Please complete ALL of the cells highlighted yellow."]
[]
[null,"Section 1. provider details"]
[]
[null,"Provider name",null,null,null,null,null,null,null,{"$f":"IF(C9=0, \"✖\", \"✔\")","v":"✖"}]
[]
[null,"UKPRN",{"$f":"IFERROR(VLOOKUP(C9,Providers!A:B,2,FALSE),\"\")","v":""}]
[]
[]
[null,"Section 2. request"]
[]
[null,"We will validate all information you enter therefore we ask you to ensure it is accurate. Any incorrect information may result in exclusion from market entry."]
[]
[null,"Funding stream",null,"16-18 Traineeships (Only)",null,null,null,null,null,{"$f":"IF(D18=0, \"✖\", \"✔\")","v":"✔"}]
[null,"Do you have an ESFA contract, funding agreement or grant for the 2021/22 academic year?",null,null,null,null,null,null,null,{"$f":"IF(OR(ISBLANK(H19),AND(H20=\"no\",H19=\"no\")), \"✖\", \"✔\")","v":"✖"}]
[null,"Do you have a 19 to 24 (procured) 2021/22 traineeship contract?",null,null,null,null,null,null,null,{"$f":"IF(OR(ISBLANK(H20),AND(H20=\"no\",H19=\"no\")), \"✖\", \"✔\")","v":"✖"}]
[null,"Do you currently have a contract to deliver 16-19 Study Programme or 16-18 standalone traineeship activity?",null,null,null,null,null,null,null,{"$f":"IF(OR(ISBLANK(H21),H21=\"Yes\"),\"✖\", \"✔\")","v":"✖"}]
[null,"What is your current Ofsted grade?",null,null,null,null,null,null,null,{"$f":"IF(ISBLANK(H22), \"✖\", \"✔\")","v":"✖"}]
[null,"Has your current financial health grade been assessed as 'Inadequate' by the ESFA?",null,null,null,null,null,null,null,{"$f":"IF(OR(ISBLANK(H23),H23=\"Yes\"),\"✖\", \"✔\")","v":"✖"}]
[null,"Have you been issued with a notice to improve or do you have contractual obligations prohibiting you from growth?",null,null,null,null,null,null,null,{"$f":"IF(OR(ISBLANK(H24),H24=\"Yes\"),\"✖\", \"✔\")","v":"✖"}]
[null,"Have you been subject to an investigation for breach of contract and/or failed audit in the past 3 years?",null,null,null,null,null,null,null,{"$f":"IF(OR(ISBLANK(H25),H25=\"Yes\"),\"✖\", \"✔\")","v":"✖"}]
[null,"Is this request for direct delivery or through a subcontract?",null,null,null,null,null,null,null,{"$f":"IF(ISBLANK(H26), \"✖\", \"✔\")","v":"✖"}]
[]
[]
[null,"Total requested for 2021 to 2022 funding year"]
[]
[null,null,null,"2021/22 request","December to March ","April to July","Total"]
[null,"Enter allocation value request £",null,null,{"$f":"IF(D32=\"\",\"\",ROUND(D32*49.79%,0))","v":""},{"$f":"IFERROR(D32-E32,\"\")","v":""},{"$f":"SUM(E32:F32)","v":0},null,null,{"$f":"IF(AND(ISBLANK(D32),ISBLANK(D32)),\"✖\", \"✔\")","v":"✖"}]
[null,"Number of starts",null,null,null,null,null,null,null,{"$f":"IF(AND(ISBLANK(D33),ISBLANK(D33)),\"✖\", \"✔\")","v":"✖"}]
[null,"The maximum you can request is £300,000 and the minimum is £100,000"]
[]
[null,"Section 3. supporting information"]
[]
[null,"Please provide details for each of the following questions.  We will not accept any information outside of this form. We will contact you if we require further information."]
[]
[null,"Each question has a maximum of 250 words."]
[]
[null,"1. Provide a description of your delivery model and how this links to your longer term goal for traineeships. "]
[null,"Word count:",{"$f":"LEN(TRIM(B44))-LEN(SUBSTITUTE(B44,\" \",\"\"))+1","v":1}]
[null,null,null,null,null,null,null,null,null,{"$f":"IF(ISBLANK(B44),\"✖\",IF(C43>250,\"✖\",\"✔\"))","v":"✖"}]
[]
[null,"2. Provide details of your capacity and capability to deliver a high quality traineeship programme and whether you have evidence of learner demand."]
[null,"Word count:",{"$f":"LEN(TRIM(B48))-LEN(SUBSTITUTE(B48,\" \",\"\"))+1","v":1}]
[null,null,null,null,null,null,null,null,null,{"$f":"IF(ISBLANK(B48),\"✖\",IF(C47>250,\"✖\",\"✔\"))","v":"✖"}]
[]
[null,"3. Provide details on how you will work with employers to secure high quality work placements for young people?"]
[null,"Word count:",{"$f":"LEN(TRIM(B52))-LEN(SUBSTITUTE(B52,\" \",\"\"))+1","v":1}]
[null,null,null,null,null,null,null,null,null,{"$f":"IF(ISBLANK(B52),\"✖\",IF(C51>250,\"✖\",\"✔\"))","v":"✖"}]
[]
[null,"4. Provide details on what arrangements you have in place to ensure successful outcomes for the young people participating on your traineeship programme?"]
[null,"Word count:",{"$f":"LEN(TRIM(B56))-LEN(SUBSTITUTE(B56,\" \",\"\"))+1","v":1}]
[null,null,null,null,null,null,null,null,null,{"$f":"IF(ISBLANK(B56),\"✖\",IF(C55>250,\"✖\",\"✔\"))","v":"✖"}]
[]
[null,"Section 4. Declaration"]
[]
[null,"•    I confirm that this request is a request for new funding only."]
[]
[null,"Please tick to confirm you have the authority to act on behalf the organisation named in this form",null,null,null,null,null,null,null,{"$f":"IF(H62=FALSE, \"✖\", \"✔\")","v":"✖"}]
[]
[null,"Name",null,null,null,null,null,null,null,{"$f":"IF(ISBLANK(C64), \"✖\", \"✔\")","v":"✖"}]
[]
[null,"Position",null,null,null,null,null,null,null,{"$f":"IF(ISBLANK(C66), \"✖\", \"✔\")","v":"✖"}]
[]
[null,"Date",null,null,null,null,null,null,null,{"$f":"IF(ISBLANK(C68), \"✖\", \"✔\")","v":"✖"}]
[]
[null,"Email/(s)",null,null,null,null,null,null,null,{"$f":"IF(ISBLANK(C70), \"✖\", \"✔\")","v":"✖"}]

{"sheet":"Providers","index":3,"n_rows":2019,"n_cols":5,"rows_kept":2019,"cut":false,"hidden":true,"merged":[]}
["1ST CARE TRAINING LIMITED",10046498]
["1ST2 ACHIEVE TRAINING LIMITED",10031126,null,null,"ESFA Funded Adult Education Budget (AEB)"]
["3 SPIRIT ENTERPRISE UK LIMITED",10061435,null,null,"16-18 Traineeships "]
["360 RECRUITMENT LIMITED",10061102,null,null,"19-24 traineeships"]
["5 E LTD.",10000020]
["8POINT8 TRAINING LIMITED",10057068,null,null,"Do not meet the track record criteria"]
["A R C ACADEMY UK LIMITED",10038023,null,null,"Data error"]
["A S TRAINING (INTERNATIONAL) LIMITED",10037198,null,null,"Technical error"]
["A W JENKINSON TRANSPORT LIMITED",10064431,null,null,"Exemption from auto reduction in Performance Review"]
["ABACUS TRAINING GROUP LIMITED",10035281,null,null,"Exceed the maximum growth"]
["ABBEYDALE VETLINK VETERINARY TRAINING LIMITED",10028269,null,null,"Have not met the threshold for growth"]
["ABELLIO EAST MIDLANDS LIMITED",10084402,null,null,"More than one of the above (please detail below)"]
["ABINGDON AND WITNEY COLLEGE",10000055,null,null,"I confirm I have authority"]
["ABM TRAINING (UK) LTD",10029426,null,null,"I do not have authority"]
["ABSOLUTE CARE TRAINING & EDUCATION LTD",10036227]
["ABSOLUTE HR SOLUTIONS LTD.",10061857]
["ACACIA TRAINING AND DEVELOPMENT LTD",10000060]
["ACACIA TRAINING LIMITED",10000061]
["ACADEMIES ENTERPRISE TRUST",10033736]
["ACADEMY 1 SPORTS LTD",10052799]
["ACADEMY FOR PROJECT MANAGEMENT LTD",10053076]
["ACADEMY OF PLAY AND CHILD PSYCHOTHERAPY LIMITED",10067447]
["ACADEMY TRAINING HAIR AND BEAUTY LIMITED",10046146]
["ACADEMY TRANSFORMATION TRUST",10039859]
["ACCESS SKILLS LTD",10024806]
["ACCESS TO MUSIC LIMITED",10000080]
["ACCESS TRAINING (EAST MIDLANDS) LTD",10010584]
["ACCESS TRAINING LIMITED",10009059]
["ACCIPIO LIMITED",10058012]
["ACCOUNTANCY LEARNING LTD",10042735]
["ACE TRAINING AND CONSULTANCY LIMITED",10034055]
["ACHIEVE TRAINING (STAFFORDSHIRE) LIMITED",10005250]
["ACHIEVEMENT TRAINING & SKILLS LTD",10053951]
["ACHIEVEMENT TRAINING LIMITED",10000099]
["ACHIEVING EXCELLENCE UK LTD",10023357]
["ACHIEVING FOR CHILDREN COMMUNITY INTEREST COMPANY",10047071]
["ACORN TRAINING CONSULTANTS LIMITED",10000108]
["ACORN TRAINING LTD",10023489]
["ACTIV FIRST LIMITED",10034423]
["ACTIVATE COMMUNITY AND EDUCATION SERVICES",10019237]
["ACTIVATE LEARNING",10004927]
["ADA NATIONAL COLLEGE FOR DIGITAL SKILLS",10057981]
["ADALTA DEVELOPMENT LTD",10043865]
["ADVANCE CARE TRAINING LIMITED",10010169]
["ADVIZA PARTNERSHIP",10028942]
["AGILITY PEOPLE SERVICES LIMITED",10024018]
["AGINCARE GROUP LIMITED",10048865]
["AIM 2 LEARN LTD",10042119]
["AIRCO REFRIGERATION AND AIRCONDITIONING LIMITED",10047241]
["AJ BELL BUSINESS SOLUTIONS LIMITED",10084400]
["ALAN HESTER ASSOCIATES LIMITED",10015933]
["ALCHEMIST CONSULTANTS LIMITED",10065814]
["ALDER HEY CHILDREN'S NHS FOUNDATION TRUST",10034356]
["ALDRIDGE EDUCATION",10058195]
["ALL DIMENSION LIMITED",10032555]
["ALL INCLUSIVE ADVICE AND TRAINING LTD",10030511]
["ALL SPRING MEDIA LIMITED",10061684]
["ALL TRADES TRAINING LIMITED",10027693]
["ALLIANCE LEARNING",10000238]
["ALM TRAINING SERVICES LIMITED",10010631]
["ALPHA CARE AGENCY LIMITED",10022070]
["ALPHA DEVELOPMENT PARTNERSHIP LTD",10024973]
["ALT VALLEY COMMUNITY TRUST LIMITED",10001777]
["ALTAMIRA ART & DESIGN LTD",10054692]
["ALTHAUS DIGITAL LIMITED",10031131]
["ALWAYS CONSULT LTD",10034128]
["AMACSPORTS LIMITED",10000267]
["AMBER HEALTHCARE PERSONNEL LIMITED",10082520]
["AMBITIOUS COLLEGE",10048265]
["ANDERSON STOCKLEY ACCREDITED TRAINING LTD",10023918]
["ANDREW COLLINGE TRAINING LIMITED",10000285]
["ANGLIA PROFESSIONAL TRAINING LIMITED",10040684]
["ANGLIA RUSKIN UNIVERSITY HIGHER EDUCATION CORPORATION",10000291]
["ANGLO AMERICAN TECHNICAL & SUSTAINABILITY SERVICES LTD",10088633]
["ANTREC LIMITED",10043333]
["ANY DRIVER LIMITED",10031544]
["APA PROCUREMENT TRAINING LIMITED",10064562]
["APCYMRU LIMITED",10000311]
["APEX MANAGEMENT CONSULTANTS LIMITED",10000315]
["APPLIED BUSINESS ACADEMY LIMITED",10062759]
["APPRENTICE TEAM LTD",10043793]
["APPRENTICESHIP LEARNING SOLUTIONS LIMITED",10000105]
["APPRENTICESHIP RECRUITMENT SERVICE LTD",10052968]
["APPRENTICESHIPS & TRAINING SERVICES CONSORTIUM LIMITED",10032404]
["APPRENTIFY LIMITED",10063272]
["APPRIS CHARITY LIMITED",10000848]
["APT HEALTH AND SAFETY TRAINING SOLUTIONS LTD",10065657]
["AQUINAS COLLEGE",10000330]
["ARCHWAY LEARNING TRUST",10052837]
["ARDEN COLLEGE",10000350]
["ARDEN UNIVERSITY LIMITED",10005451]
["AREA 51 EDUCATION LTD",10024163]
["ARK SCHOOLS",10044534]
["ARMONIA LIMITED",10019236]
["ARTS UNIVERSITY BOURNEMOUTH, THE",10000385]
["ASHLEY COMMUNITY & HOUSING LTD",10038201]
["ASHLEY HUNTER LTD",10034001]
["ASKHAM BRYAN COLLEGE",10000415]
["ASPECT TRAINING LIMITED",10000417]
["ASPENS-SERVICES LIMITED",10065752]
["ASPHALEIA LIMITED",10019293]
["ASPIRATION TRAINING LIMITED",10000421]
["ASPIRE DEVELOPMENT (UK) LTD",10054055]
["ASPIRE SPORTING ACADEMY LTD",10032029]
["ASPIRE SPORTS HEALTH & FITNESS LTD",10037170]
["ASPIRE TO LEARN LIMITED",10023313]
["ASPIRE TRAINING SOLUTIONS (UK) LIMITED",10044252]
["ASPIRE TRAINING TEAM LIMITED",10006942]
["ASPIRE-IGEN GROUP LTD",10001182]
["ASSET TRAINING & CONSULTANCY LIMITED",10000427]
["ASSIST KNOWLEDGE DEVELOPMENT LIMITED",10049099]
["ASSOCIATED NEIGHBOUR TRAINING LIMITED",10057050]
["ASTARA TRAINING LIMITED",10042141]
["ASTON UNIVERSITY",10007759]
["ASTRO MARTIN LTD",10044705]
["ATALIAN SERVEST INTEGRATED SOLUTIONS LIMITED",10066188]
["AURELIA TRAINING LIMITED",10000452]
["AURORA FE LIMITED",10067746]
["AUTISMABLE CIC",10049230]
["AUTO-ASSESS LIMITED",10065596]
["AVANT PARTNERSHIP LIMITED",10022513]
["AVEREE LTD",10036194]
["AWC TRAINING LTD",10033536]
["AWE PLC",10008081]
["AXIA SOLUTIONS LIMITED",10000470]
["AYLESBURY COLLEGE",10000473]
["AZESTA LIMITED",10003979]
["AZURE CHARITABLE ENTERPRISES",10005781]
["B & M RETAIL LIMITED",10066819]
["B L TRAINING LIMITED",10000486]
["BABCOCK SKILLS DEVELOPMENT AND TRAINING LIMITED",10037348]
["BABCOCK TRAINING LIMITED",10003161]
["BABINGTON BUSINESS COLLEGE LIMITED",10000494]
["BACK 2 WORK COMPLETE TRAINING LIMITED",10033156]
["BAE SYSTEMS PLC",10000501]
["BALTIC TRAINING SERVICES LIMITED",10019026]
["BANHAM ACADEMY LIMITED",10046413]
["BARKING & DAGENHAM LONDON BOROUGH COUNCIL",10000143]
["BARKING AND DAGENHAM COLLEGE",10000528]
["BARNARDO'S",10000532]
["BARNET & SOUTHGATE COLLEGE",10000533]
["BARNET LONDON BOROUGH COUNCIL",10003986]
["BARNSLEY COLLEGE",10000536]
["BARNSLEY METROPOLITAN BOROUGH COUNCIL",10000538]
["BARRETT BELL LTD",10037715]
["BARTON PEVERIL SIXTH FORM COLLEGE",10000552]
["BASINGSTOKE COLLEGE OF TECHNOLOGY",10000560]
["BASINGSTOKE ITEC LIMITED",10000561]
["BATH & NORTH EAST SOMERSET COUNCIL",10000568]
["BATH COLLEGE",10001465]
["BATH SPA UNIVERSITY",10000571]
["BAUER RADIO LIMITED",10002230]
["BC ARCH LIMITED",10046797]
["BCTG LIMITED",10006600]
["BEACON EDUCATION PARTNERSHIP LIMITED",10033608]
["BEATS LEARNING LIMITED",10045339]
["BEAUMONT COLLEGE - A SALUTEM/AMBITO COLLEGE",10000599]
["BEDFORD BOROUGH COUNCIL",10024291]
["BEDFORD COLLEGE",10000610]
["BEDFORDSHIRE & LUTON EDUCATION BUSINESS PARTNERSHIP",10000612]
["BEMIX C.I.C.",10028500]
["BENSON-SMITH LIMITED",10056494]
["BEPART EDUCATIONAL TRUST",10058453]
["BERKSHIRE COLLEGE OF AGRICULTURE, THE (BCA)",10000654]
["BESPOKE CONSULTANCY & EDUCATION LIMITED",10054118]
["BESPOKE PROFESSIONAL DEVELOPMENT AND TRAINING LIMITED",10045955]
["BEST CHOICE TRAINING LTD",10036126]
["BEST PRACTICE NETWORK LIMITED",10019464]
["BEST PRACTICE TRAINING & DEVELOPMENT LIMITED",10023705]
["BESTLAND SOLUTIONS LIMITED",10018344]
["BETTER FUTURES MULTI-ACADEMY TRUST",10081879]
["BEXHILL COLLEGE",10000670]
["BEXLEY LONDON BOROUGH COUNCIL",10000146]
["BIG CREATIVE TRAINING LTD",10002073]
["BIRKBECK COLLEGE",10007760]
["BIRMINGHAM CITY COUNCIL",10000703]
["BIRMINGHAM CITY UNIVERSITY",10007140]
["BIRMINGHAM COMMUNITY HEALTHCARE NHS FOUNDATION TRUST",10039958]
["BIRMINGHAM ELECTRICAL TRAINING LTD",10000715]
["BIRMINGHAM METROPOLITAN COLLEGE",10006442]
["BIRMINGHAM WOMEN'S AND CHILDREN'S NHS FOUNDATION TRUST",10037935]
["BIRTENSHAW",10015031]
["BIRTENSHAW",10055479]
["BISHOP AUCKLAND COLLEGE",10000720]
["BISHOP BURTON COLLEGE",10000721]
["BISHOP FLEMING LLP",10082311]
["BISHOP GROSSETESTE UNIVERSITY",10007811]
["BLACKBURN COLLEGE",10000747]
["BLACKBURN WITH DARWEN BOROUGH COUNCIL",10000748]
["BLACKPOOL AND THE FYLDE COLLEGE",10000754]
["BLACKPOOL BOROUGH COUNCIL",10000755]
["BLUE APPLE TRAINING LTD",10037126]
["BLUE LION TRAINING ACADEMY LIMITED",10065784]
["BLUE SKY ASSESSING & CONSULTANCY LTD",10046850]
["BLUEJAY BUSINESS SUPPORT LIMITED",10063276]
["BLYTH HARBOUR COMMISSIONERS",10023815]
["BMI HEALTHCARE LIMITED",10061599]
["BMS PERFORMANCE EDUCATION LLP",10065872]
["BOCK CONSULTANCY & PERSONNEL DEVELOPMENT LIMITED",10025267]
["BOLTON COLLEGE",10000794]
["BOLTON METROPOLITAN BOROUGH COUNCIL",10000795]
["BOLTON SIXTH FORM COLLEGE",10000796]
["BOOM TRAINING LIMITED",10044607]
["BOROUGH OF TELFORD AND WREKIN",10006547]
["BOSCH AUTOMOTIVE SERVICE SOLUTIONS LTD",10042884]
["BOSTON COLLEGE",10000812]
["BOTTLE GREEN TRAINING LIMITED",10037391]
["BOURNEMOUTH AND POOLE COLLEGE, THE",10000820]
["BOURNEMOUTH CHRISTCHURCH AND POOLE COUNCIL",10005143]
["BOURNEMOUTH UNIVERSITY",10000824]
["BPIF TRAINING LIMITED",10034212]
["BPP ACTUARIAL EDUCATION LIMITED",10061524]
["BPP HOLDINGS LIMITED",10000831]
["BPP PROFESSIONAL EDUCATION LIMITED",10029952]
["BPP UNIVERSITY LIMITED",10031982]
["BRACKNELL FOREST BOROUGH COUNCIL",10000834]
["BRADFORD CITY COUNCIL",10000850]
["BRADFORD COLLEGE",10000840]
["BRAGD LLP",10040391]
["BRAILLARD TRAINING LIMITED",10085310]
["BRATHAY TRUST",10018959]
["BRECKENBROUGH SCHOOL",10017949]
["BRENT LONDON BOROUGH COUNCIL",10000863]
["BRENTWOOD COMMUNITY COLLEGE",10056251]
["BRIDGE COLLEGE",10000872]
["BRIDGE TRAINING LIMITED",10000874]
["BRIDGEWAY CONSULTING LIMITED",10024474]
["BRIDGWATER AND TAUNTON COLLEGE",10000878]
["BRIGANTIA LEARNING TRUST LIMITED",10060425]
["BRIGHT BEES NURSERY LTD",10066498]
["BRIGHT DIRECTION TRAINING LIMITED",10033710]
["BRIGHTER BEGINNINGS DAY NURSERY LIMITED",10034931]
["BRIGHTER FUTURES MERSEYSIDE LIMITED",10037945]
["BRIGHTON & HOVE CITY COUNCIL",10000883]
["BRIGHTON HOVE AND SUSSEX SIXTH FORM COLLEGE",10000887]
["BRISTOL CITY COUNCIL",10000896]
["BRITISH ACADEMY OF JEWELLERY LIMITED",10038772]
["BRITISH AIRWAYS PLC",10065549]
["BRITISH ARMY",10033440]
["BRITISH GAS SERVICES LIMITED",10000915]
["BRITISH PRINTING INDUSTRIES FEDERATION LTD",10000929]
["BRITISH TELECOMMUNICATIONS PUBLIC LIMITED COMPANY",10027662]
["BROCKENHURST COLLEGE",10000944]
["BROGDALE CIC",10044946]
["BROMLEY LONDON BOROUGH COUNCIL",10003987]
["BROOKLANDS COLLEGE",10000950]
["BROOKS AND KIRK (ASSESSOR TRAINING) LIMITED",10062398]
["BROWNS STAMFORD LTD",10084572]
["BRS EDUCATION LIMITED",10048409]
["BRUNEL EDUCATION",10084430]
["BRUNEL UNIVERSITY LONDON",10000961]
["B-SKILL LIMITED",10000488]
["BUCKINGHAMSHIRE COUNCIL",10000976]
["BUCKINGHAMSHIRE NEW UNIVERSITY",10000975]
["BUILDING CRAFTS COLLEGE",10009063]
["BUILDING HEROES EDUCATION FOUNDATION",10048224]
["BURNLEY COLLEGE",10001000]
["BURTON AND SOUTH DERBYSHIRE COLLEGE",10001004]
["BURY COLLEGE",10001005]
["BURY METROPOLITAN BOROUGH COUNCIL",10001008]
["BUSINESS TRAINING VENTURES LIMITED",10015932]
["BUSINESS TRANSFER AGENT LTD",10065535]
["BUSY BEES EDUCATION & TRAINING LIMITED",10085899]
["BUSY BEES NURSERIES LIMITED",10030637]
["BUTTERCUPS TRAINING LIMITED",10013570]
["BUZZ LEARNING LIMITED",10008135]
["BYGROVE PRIMARY SCHOOL",10063978]
["C & G ASSESSMENTS AND TRAINING LIMITED",10010549]
["C.M.S. VOCATIONAL TRAINING LIMITED",10001515]
["CADENT GAS LIMITED",10061438]
["CALDECOTT FOUNDATION SCHOOL",10015061]
["CALDERDALE AND HUDDERSFIELD NHS FOUNDATION TRUST",10043062]
["CALDERDALE COLLEGE",10001093]
["CALDERDALE METROPOLITAN BOROUGH COUNCIL",10001094]
["CALEX UK LTD",10019065]
["CALMAN COLAISTE (KISIMUL GROUP)",10064516]
["CAMBIAN DILSTON COLLEGE",10012822]
["CAMBIAN LUFTON COLLEGE",10012804]
["CAMBIAN WING COLLEGE",10027379]
["CAMBRIDGE MARKETING COLLEGE LIMITED",10001113]
["CAMBRIDGE MERIDIAN ACADEMIES TRUST",10053421]
["CAMBRIDGE PROFESSIONAL ACADEMY LIMITED",10001115]
["CAMBRIDGE REGIONAL COLLEGE",10001116]
["CAMBRIDGE SPARK LIMITED",10063309]
["CAMBRIDGESHIRE COUNTY COUNCIL",10001123]
["CAMDEN LONDON BOROUGH COUNCIL",10003988]
["CAN TRAINING LIMITED",10036807]
["CANAL ENGINEERING LIMITED",10043112]
["CANCER RESEARCH UK",10067082]
["CANTERBURY CHRIST CHURCH UNIVERSITY",10001143]
["CANTO LEARNING LIMITED",10082722]
["CAPEL MANOR COLLEGE",10001148]
["CAPELLA ASSOCIATES LTD",10024015]
["CAPITA PLC",10001149]
["CAPITAL 4 TRAINING LIMITED",10038922]
["CAPTIVA LEARNING LIMITED",10030870]
["CARDINAL NEWMAN COLLEGE",10001165]
["CARE FIRST TRAINING LIMITED",10013110]
["CARE INT LIMITED",10053618]
["CAREERWISE CONSULTANCY LTD",10040411]
["CARESHIELD LIMITED",10045389]
["CARETRADE CHARITABLE TRUST",10028480]
["CARMEL COLLEGE",10001201]
["CAROLE PLUMMER",10011332]
["CAROLINE PAULING",10039527]
["CATALYST LEARNING AND DEVELOPMENT LIMITED",10039821]
["CATCH 22 CHARITY LIMITED",10025727]
["CATCOTE FUTURES",10067033]
["CAUNTON ENGINEERING LIMITED",10062100]
["CECOS COMPUTING INTERNATIONAL LIMITED",10037364]
["CEDARS HEALTH & BEAUTY CENTRES LIMITED",10056770]
["CELLAR TAPES UK LTD",10085130]
["CENTRAL AND NORTH WEST LONDON NHS FOUNDATION TRUST",10042171]
["CENTRAL BEDFORDSHIRE COLLEGE",10002061]
["CENTRAL BEDFORDSHIRE COUNCIL",10024292]
["CENTRAL MEDICAL SERVICES LTD",10083042]
["CENTRAL TRAINING ACADEMY LIMITED",10001259]
["CENTRAL VETERINARY SERVICES LIMITED",10028380]
["CENTRAL YOUNG MEN'S CHRISTIAN ASSOCIATION",10008155]
["CENTRE FOR LEADERSHIP AND MANAGEMENT DEVELOPMENT LIMITED",10040187]
["CENTREPOINT SOHO",10021563]
["CERT LTD",10001585]
["CERTAS ENERGY UK LIMITED",10061783]
["CHADSGROVE EDUCATIONAL TRUST",10063538]
["CHAIGELEY SCHOOL",10015087]
["CHAILEY HERITAGE FOUNDATION",10015222]
["CHAMBER TRAINING (HUMBER) LIMITED",10001310]
["CHAMELEON VOCATIONAL TRAINING LIMITED",10037213]
["CHATSWORTH FUTURES LIMITED",10049051]
["CHEADLE AND MARPLE SIXTH FORM COLLEGE",10001346]
["CHELMSFORD COLLEGE",10001353]
["CHELSEA AND WESTMINSTER HOSPITAL NHS FOUNDATION TRUST",10030534]
["CHERITH SIMMONS LEARNING & DEVELOPMENT LLP",10045070]
["CHESHIRE COLLEGE SOUTH AND WEST",10005972]
["CHESHIRE EAST COUNCIL",10024293]
["CHESHIRE WEST AND CHESTER COUNCIL",10024294]
["CHESTERFIELD COLLEGE",10001378]
["CHEYNE'S (MANAGEMENT) LIMITED",10008159]
["CHICHESTER COLLEGE GROUP",10007817]
["CHILDBASE PARTNERSHIP LIMITED",10084678]
["CHILTERN TRAINING LIMITED",10001394]
["CHOICE TRAINING LTD.",10037909]
["CHRIST THE KING SIXTH FORM COLLEGE",10001416]
["CHRIST THE REDEEMER COLLEGE",10026921]
["CHRYSOS H.R. SOLUTIONS LIMITED",10024320]
["CILEX LAW SCHOOL LIMITED",10003252]
["CIPFA BUSINESS LIMITED",10063574]
["CIPS CORPORATE SERVICES LIMITED",10065628]
["CIRENCESTER COLLEGE",10001446]
["CITB",10001436]
["CITRUS TRAINING LIMITED",10013516]
["CITY COLLEGE NORWICH",10004772]
["CITY COLLEGE PLYMOUTH",10005128]
["CITY GATEWAY",10019383]
["CITY OF BRISTOL COLLEGE",10001467]
["CITY OF PORTSMOUTH COLLEGE",10007945]
["CITY OF SUNDERLAND COLLEGE",10001475]
["CITY OF WOLVERHAMPTON COLLEGE",10007578]
["CITY OF YORK COUNCIL",10001477]
["CITY SKILLS LIMITED",10065422]
["CITY, UNIVERSITY OF LONDON",10001478]
["CIVIL CEREMONIES LIMITED",10036585]
["CJI SOLUTIONS LIMITED",10010586]
["CLARKSON EVANS TRAINING LIMITED",10025390]
["CLEARLINE RECRUITMENT LTD",10066561]
["CLEVELAND YOUTH ASSOCIATION",10005775]
["CLIFFORD COLLEGE LTD",10055883]
["CLINICAL PROFESSIONALS LIMITED",10062567]
["CODE NATION LIMITED",10043702]
["COGENT SSC LIMITED",10001531]
["COGNITIA CONSULTING LIMITED",10053675]
["COLCHESTER INSTITUTE",10001535]
["COLEG CAMBRIA",10041295]
["COLEG ELIDYR",10001538]
["COLEG GWENT",10008912]
["COMMON COUNCIL OF THE CITY OF LONDON",10008915]
["COMMUNICATION SPECIALIST COLLEGE -  DONCASTER",10002006]
["COMMUNICATORS TRAINING ASSOCIATES LIMITED",10024633]
["COMMUNITY COLLEGE INITIATIVE LTD",10055371]
["COMMUNITY FIRST ACADEMY TRUST",10054033]
["COMMUNITY LEARNING IN PARTNERSHIP (CLIP) CIC",10032017]
["COMMUNITY TRAINING PORTAL LIMITED",10020068]
["COMMUNITY TRAINING SERVICES LIMITED",10001602]
["COMPASS SKILLS TRAINING LIMITED",10083267]
["COMPLETE LEAN SOLUTIONS LIMITED",10055054]
["CONDOVER COLLEGE LIMITED",10009120]
["CONNECTIVE CARE EDUCATION LTD",10062399]
["CONSALIA LIMITED",10061865]
["CONSORTIA TRAINING LIMITED",10033482]
["CONSORTIUM OF VOCATIONAL AND EDUCATIONAL TRAINERS LIMITED",10033547]
["CONSTRUCTION AND PLANT ASSESSMENTS LTD",10037751]
["CONSTRUCTION WORKS (HULL) LIMITED",10020198]
["CONTRACTING SERVICES (EDUCATION AND SKILLS) LIMITED",10056737]
["CONVEY365 LTD",10082851]
["CORNDEL LIMITED",10061407]
["CORNWALL COLLEGE",10001696]
["CORNWALL COUNCIL",10001695]
["CORNWALL MARINE NETWORK LIMITED",10033408]
["CORSERV LIMITED",10081883]
["COUNCIL OF THE ISLES OF SCILLY",10001710]
["COUNTY DURHAM COUNCIL",10002064]
["COVENTRY AND WARWICKSHIRE CHAMBERS OF COMMERCE TRAINING LIMITED",10001309]
["COVENTRY CITY COUNCIL",10001723]
["COVENTRY COLLEGE",10003010]
["COVENTRY UNIVERSITY",10001726]
["CP TRAINING SERVICES LIMITED",10001733]
["CQM TRAINING AND CONSULTANCY LIMITED",10025961]
["CRACKERJACK TRAINING LIMITED",10001736]
["CRANFIELD UNIVERSITY",10007822]
["CRAVEN COLLEGE",10001743]
["CREATIVE PROCESS DIGITAL LTD",10047679]
["CREATIVE SPORT & LEISURE LTD",10054819]
["CRISPIN SCHOOL ACADEMY",10034178]
["CROSBY MANAGEMENT TRAINING LTD",10034952]
["CROWN VOCATIONAL TRAINING LIMITED",10037798]
["CROYDON COLLEGE",10001778]
["CROYDON LONDON BOROUGH COUNCIL",10003989]
["CROYDON SCHOOL OF ACCOUNTANCY AND MANAGEMENT LIMITED",10038292]
["CSA (SERVICES) LTD",10063438]
["CSM CONSULTING LIMITED",10001786]
["CSR SCIENTIFIC TRAINING LIMITED",10034416]
["CSW GROUP LIMITED",10001639]
["CT SKILLS LIMITED",10001174]
["CULTURE, LEARNING AND LIBRARIES (MIDLANDS)",10052892]
["CUMBRIA COUNTY COUNCIL",10001800]
["CVP CONSULT LTD",10082269]
["CVQO LTD",10014226]
["CVS (UK) LIMITED",10045754]
["CXK LIMITED",10001648]
["D N A APPRENTICESHIPS LTD",10055542]
["D.T.K. BUSINESS SERVICES LIMITED",10013118]
["DA TRAINING AND CONSULTANCY LIMITED",10047122]
["DAMAR LIMITED",10001831]
["DARLINGTON BOROUGH COUNCIL",10001848]
["DARLINGTON COLLEGE",10001850]
["DATA LAW LIMITED",10083691]
["DAVE SHURMER",10063515]
["DAVID IRESON",10031424]
["DAVID LEWIS SCHOOL",10039933]
["DAVID NIEPER LIMITED",10082111]
["DAVIDSON TRAINING UK LIMITED",10001869]
["DAVIES LEARNING SOLUTIONS LIMITED",10046149]
["DAWN HODGE ASSOCIATES LIMITED",10022117]
["DAWN HOUSE SCHOOL",10015047]
["DAY ONE TRUST",10060111]
["DC RECLAMATION LTD",10065960]
["DCG",10001919]
["DE MONTFORT UNIVERSITY",10001883]
["DEBUT TRAINING ACADEMY LIMITED",10031912]
["DECIDEBLOOM LIMITED",10049678]
["DECODED LIMITED",10065767]
["DEERE APPRENTICESHIPS LTD",10034887]
["DENTAL PROFESSIONAL EDUCATION LTD.",10063911]
["DENTRAIN PROFESSIONALS LTD",10035789]
["DERBY BUSINESS COLLEGE LIMITED",10005109]
["DERBY CITY COUNCIL",10001918]
["DERBY SKILLBUILD",10007922]
["DERBYSHIRE COUNTY COUNCIL",10001928]
["DERWEN COLLEGE",10001929]
["DERWENT TRAINING ASSOCIATION",10009389]
["DERWENTSIDE COLLEGE",10001934]
["DEVELOP CONSULTING LIMITED",10085903]
["DEVELOPING `U` LIMITED",10061826]
["DEVELOPMENT TRADING (EDUCATION) LIMITED",10043784]
["DEVON AND SOMERSET FIRE AND RESCUE AUTHORITY ",10027434]
["DEVON COUNTY COUNCIL",10001951]
["DEVONPORT ROYAL DOCKYARD LIMITED",10045268]
["DEXTERS LONDON LIMITED",10084602]
["DFS TRADING LIMITED",10063286]
["DHUNAY CORPORATION LTD",10034279]
["DIANTHAS LTD",10027146]
["DICK WHITE REFERRALS LIMITED",10063954]
["DIDAC LIMITED",10001967]
["DIGITAL MARKETING MENTOR LTD",10037757]
["DIGITAL NATIVE (UK) LIMITED",10052858]
["DIGITAL TELECOMS NETWORK ACADEMY LIMITED",10001078]
["DIMENSIONS TRAINING SOLUTIONS LIMITED",10001971]
["DIP (BATLEY) LTD",10010178]
["DISCOVERY RECRUITMENT LIMITED",10063214]
["DIVAD TRAINING LIMITED",10054816]
["DN COLLEGES GROUP",10004695]
["DONCASTER COUNCIL",10002008]
["DONCASTER ROTHERHAM AND DISTRICT MOTOR TRADES GROUP TRAINING ASSOCIATION LIMITED",10002009]
["DONCASTER SCHOOL FOR THE DEAF",10015363]
["DOOSAN BABCOCK LIMITED",10004399]
["DORSET COUNCIL",10002013]
["DORTON COLLEGE OF FURTHER EDUCATION",10009069]
["DOVE HOUSE SCHOOL",10034865]
["DOVE NEST MANAGEMENT TRAINING AND DEVELOPMENT LIMITED",10023085]
["DOWNS VIEW LIFE SKILLS COLLEGE",10068178]
["DRL SERVICES LTD",10062212]
["DUDLEY COLLEGE OF TECHNOLOGY",10007924]
["DUDLEY METROPOLITAN BOROUGH COUNCIL",10002054]
["DUTTON FISHER ASSOCIATES LIMITED",10031127]
["DV8 TRAINING (BRIGHTON) LIMITED",10029823]
["DYNAMIC TRAINING UK LIMITED",10031984]
["DYNAMO HEALTHCARE TRAINING LTD",10041239]
["DYSON TECHNICAL TRAINING LIMITED",10067355]
["E.J.MARKHAM & SON LIMITED",10062166]
["E.Q.V. (UK) LIMITED",10002304]
["E.QUALITY TRAINING LIMITED",10002085]
["EAGLE EDUCATION AND TRAINING LIMITED",10002090]
["EALING LONDON BOROUGH COUNCIL",10009206]
["EALING, HAMMERSMITH & WEST LONDON COLLEGE",10002094]
["EASI HAIRDRESSING ACADEMY LIMITED",10002098]
["EAST BIRMINGHAM COMMUNITY FORUM LTD.",10019812]
["EAST COAST COLLEGE",10004116]
["EAST DURHAM COLLEGE",10002111]
["EAST ESSEX VOCATIONAL TRAINING LIMITED",10028038]
["EAST LINDSEY INFORMATION TECHNOLOGY CENTRE",10002471]
["EAST LONDON ADVANCED TECHNOLOGY TRAINING",10002118]
["EAST NORFOLK MULTI ACADEMY TRUST",10080858]
["EAST RIDING COLLEGE",10002126]
["EAST RIDING OF YORKSHIRE COUNCIL",10008919]
["EAST SURREY COLLEGE",10002130]
["EAST SUSSEX COLLEGE GROUP",10002923]
["EAST SUSSEX COUNTY COUNCIL",10002131]
["EASTERN REGION ROOF TRAINING GROUP LIMITED",10002140]
["EASTLEIGH COLLEGE",10002143]
["EAT THAT FROG C.I.C.",10032448]
["EBOR ACADEMY TRUST",10061219]
["EDEN COLLEGE OF HUMAN RESOURCE DEVELOPMENT AND MANAGEMENT STUDIES LIMITED",10019914]
["EDEN TRAINING LTD",10002167]
["EDEN TRAINING SOLUTIONS LIMITED",10027766]
["EDGE HILL UNIVERSITY",10007823]
["EDINBURGH NAPIER UNIVERSITY",10007772]
["EDLOUNGE LTD",10048284]
["EDUCATION AND SERVICES FOR PEOPLE WITH AUTISM LIMITED",10002345]
["EDUCATION AND SKILLS TRAINING & DEVELOPMENT LIMITED",10052638]
["EDUCATION AND TRAINING SKILLS LTD",10002187]
["EDUCATION GOALS LTD",10083696]
["EEF LIMITED",10025384]
["EGLANTINE CATERING LIMITED",10020019]
["EKC GROUP",10006570]
["ELECTRICAL TESTING LIMITED",10056912]
["ELEV8 TRAINING LIMITED",10029332]
["ELEVATED KNOWLEDGE LTD",10057175]
["ELFRIDA RATHBONE CAMDEN - LEIGHTON COLLEGE",10002214]
["ELIESHA TRAINING LIMITED",10026843]
["ELITE TRAINING EUROPEAN LIMITED",10009998]
["ELMHOUSE CHILDCARE LTD",10045136]
["EM SKILLS LIMITED",10047761]
["EMA TRAINING LIMITED",10041891]
["EMBS COMMUNITY COLLEGE LIMITED",10002331]
["EMD UK C.I.C.",10032936]
["EMMA WRIGHT",10061152]
["EMPENTIS LIMITED",10065933]
["EMPLOY MY ABILITY (EMA) LIMITED",10088810]
["ENABLING DEVELOPMENT OPPORTUNITIES LTD",10023898]
["ENCOMPASS CONSULTANCY LIMITED",10032396]
["ENFIELD LONDON BOROUGH COUNCIL",10002260]
["ENGAGE TRAINING AND DEVELOPMENT LTD",10019041]
["ENGINEERING TRUST TRAINING LIMITED",10003402]
["ENGLAND AND WALES CRICKET BOARD LIMITED",10013548]
["ENHAM TRUST",10008920]
["ENSIS SOLUTIONS LIMITED",10046692]
["E-QUALITAS PROFESSIONAL SERVICES LIMITED",10046623]
["EQUESTRIAN TRAINING LIMITED",10038196]
["ERNST & YOUNG LLP",10056749]
["ESCALA ACADEMY LIMITED",10053340]
["ESCALLA TS LTD",10035270]
["ESSENTIAL SITE SKILLS LTD",10044407]
["ESSEX COUNTY COUNCIL",10002327]
["ESSEX PARTNERSHIP UNIVERSITY NHS FOUNDATION TRUST",10023516]
["ESSEX POLICE AND CRIME COMMISSIONER",10062528]
["ESTIO TRAINING LIMITED",10048177]
["E-TRAINING LIMITED",10002078]
["EURO GARAGES LIMITED",10040883]
["EVERTON IN THE COMMUNITY",10005814]
["EVOLVE ACADEMY LTD",10057910]
["EVOLVE EDUCATION LTD",10028626]
["EVOLVE YOUR FUTURE LIMITED",10021427]
["EXALT TRAINING LTD",10043375]
["EXCEED ACADEMIES TRUST",10064216]
["EXCEED TRAINING COMPANY LIMITED",10028919]
["EXCEL TRAINING LIMITED",10037723]
["EXCELL FOR TRAINING LIMITED",10034011]
["EXCELLENCE-SOLUTIONS LIMITED",10043389]
["EXCELSIS TRAINING LIMITED",10055025]
["EXERTIS (UK) LTD",10065437]
["EXETER COLLEGE",10002370]
["EXETER ROYAL ACADEMY FOR DEAF EDUCATION",10024771]
["EXETER ROYAL ACADEMY FOR DEAF EDUCATION",10039934]
["EXG LIMITED",10003231]
["EXPANSE GROUP LTD",10041170]
["EXTEL LIMITED",10032788]
["EYC GLOBAL LIMITED",10085631]
["F E ASSOCIATES LIMITED",10064256]
["FAIRCROFT & MEADOWS CONSULTANCY LTD",10058066]
["FAIRFIELD FARM COLLEGE (FAIRFIELD FARM TRUST)",10002396]
["FAIRWAY TRAINING (HEALTHCARE) LIMITED",10040909]
["FAREHAM COLLEGE",10007928]
["FAREPORT TRAINING ORGANISATION LIMITED",10002407]
["FARLEIGH FURTHER EDUCATION COLLEGE - FROME",10002409]
["FARNBOROUGH COLLEGE OF TECHNOLOGY",10002412]
["FASHION - ENTER LTD",10026238]
["FASHION RETAIL ACADEMY",10009213]
["FBP VENTURES LTD",10028716]
["FE BUSINESS LIMITED",10052863]
["FELIGRACE LIMITED",10029907]
["FINANCE COVER & TRAINING LIMITED",10040847]
["FINANCIAL SERVICES TRAINING PARTNERS LLP",10064605]
["FINCHALE TRAINING COLLEGE",10002457]
["FINNING (UK) LTD.",10002463]
["FIR TREE FISHERY CIC",10043186]
["FIRCROFT COLLEGE OF ADULT EDUCATION",10008641]
["FIREBRAND TRAINING LIMITED",10010335]
["FIRST AVENUE TRAINING LIMITED",10021068]
["FIRST FOR APPRENTICESHIPS LIMITED",10061442]
["FIRST INTUITION BRISTOL LIMITED",10062042]
["FIRST INTUITION CAMBRIDGE LIMITED",10030926]
["FIRST INTUITION CHELMSFORD LIMITED",10042003]
["FIRST INTUITION LEEDS LIMITED",10056050]
["FIRST INTUITION LIMITED",10056738]
["FIRST INTUITION MAIDSTONE LIMITED",10034969]
["FIRST INTUITION READING LIMITED",10040718]
["FIRST RUNG LIMITED",10002483]
["FIRST STEP EDUCATION & TRAINING LIMITED",10041108]
["FIT UK TRAINING & EDUCATION LTD",10031876]
["FITCH LEARNING LIMITED",10018277]
["FLATWORLDWORKS LIMITED",10045975]
["FLEXIBLE TRAINING LIMITED",10019719]
["FLM TRAINING LTD",10040440]
["FLOORSKILLS LIMITED",10044025]
["FLOORTRAIN (GB) LIMITED",10027599]
["FOCUS FITNESS UK LIMITED",10043612]
["FOCUS TRAINING (SW) LIMITED",10026590]
["FOCUS TRAINING LIMITED",10010401]
["FOLKESTONE & HYTHE DISTRICT COUNCIL",10064221]
["FOLKESTONE BEACON+ LIMITED",10083475]
["FOOTBALL FAMILY LIMITED",10082555]
["FORESTRY COMMISSION ",10012863]
["FORUM FOR SUSTAINABLE NEW VENTURE",10084420]
["FORWARD2EMPLOYMENT",10083544]
["FOUNDERS & CODERS C.I.C.",10085696]
["FOXES ACADEMY",10002560]
["FRANCESCO GROUP (HOLDINGS) LIMITED",10002565]
["FRANKLIN COLLEGE",10002570]
["FREE TO LEARN LTD",10030935]
["FREEMAN COLLEGE",10025915]
["FRESH COMMUN-IT LIMITED",10064433]
["FRESHFIELD TRAINING ASSOCIATES LTD",10045798]
["F-TEC FORKLIFT TRAINING ENGINEERING CENTRE LTD",10061808]
["FUEL LEARNING LIMITED",10058111]
["FUNCTIONAL SKILLS UK LIMITED",10047090]
["FURNESS COLLEGE",10002599]
["FURTHER TRAINING LIMITED",10044321]
["FUTURE ACADEMIES",10043978]
["FUTURE FINDERS EMPLOYABILITY COLLEGE",10081018]
["FUTURE HORIZONS LEEDS",10082882]
["FUTURES ADVICE, SKILLS AND EMPLOYMENT LIMITED",10001647]
["FW SOLUTIONS LIMITED",10024751]
["GATESHEAD COLLEGE",10002638]
["GATESHEAD COUNCIL",10002639]
["GATEWAY EDUCATION (LONDON) LIMITED",10044985]
["GECKO PROGRAMMES LIMITED",10029887]
["GEDLING BOROUGH COUNCIL",10011056]
["GEM PARTNERSHIP LIMITED",10065710]
["GENESIS TRAINING GROUP LTD",10046705]
["GENII ENGINEERING & TECHNOLOGY TRAINING LIMITED",10002655]
["GENIUS SOFTWARE SOLUTIONS LIMITED",10038872]
["GENIUS SOLUTIONS LIMITED",10003784]
["GEOSEIS CONSULTANT LIMITED",10066420]
["GET SET ACADEMY LTD.",10049431]
["GET SKILLS EMPLOYMENT & TRAINING LTD",10037130]
["GGS SALON T/A YELLOWTREE WORKFORCE DEVELOPMENT LIMITED",10084622]
["GHQ TRAINING LIMITED",10012171]
["GI GROUP RECRUITMENT LTD",10039882]
["GILLINGHAM FOOTBALL CLUB LTD",10082838]
["GINGER NUT MEDIA LIMITED",10048380]
["GK APPRENTICESHIPS LIMITED",10027893]
["GK TRAINING SERVICES LIMITED",10020867]
["GLAS BUSINESS SOLUTIONS LIMITED",10031028]
["GLASGOW CALEDONIAN UNIVERSITY",10007762]
["GLASS & FENESTRATION TRAINING SOLUTIONS LTD",10040392]
["GLASSHOUSE COLLEGE",10025914]
["GLOBAL SKILLS TRAINING LTD",10023829]
["GLOUCESTERSHIRE COLLEGE",10002696]
["GLOUCESTERSHIRE COUNTY COUNCIL",10002697]
["GLOUCESTERSHIRE ENGINEERING TRAINING LIMITED",10002704]
["GLOUCESTERSHIRE ENTERPRISE LIMITED",10001041]
["GLP TRAINING LTD",10046997]
["GO BEYOND SERVICES LTD",10083926]
["GO TRAIN LIMITED",10023196]
["GODDARD VETERINARY GROUP LIMITED",10044886]
["GOODWIN ENGINEERING TRAINING COMPANY LIMITED",10067871]
["GORDON FRANKS TRAINING LIMITED",10043571]
["GOVIA THAMESLINK RAILWAY LIMITED",10056776]
["GOWER COLLEGE SWANSEA",10030408]
["GP STRATEGIES TRAINING LIMITED",10036952]
["GRANTHAM COLLEGE",10002743]
["GREAT OAKS CHARITABLE TRUST",10068348]
["GREAT YARMOUTH COMMUNITY TRUST",10002756]
["GREATER BRIGHTON METROPOLITAN COLLEGE",10004736]
["GREATER MANCHESTER COMBINED AUTHORITY",10052576]
["GREATER MANCHESTER MENTAL HEALTH NHS FOUNDATION TRUST",10034368]
["GREEN INC (EU) LIMITED",10038020]
["GREENBANK PROJECT (THE)",10002767]
["GREENDALE LIMITED",10021650]
["GREENHEAD COLLEGE",10002770]
["GREENLIGHT TRAINING LIMITED",10080843]
["GREY SEAL ACADEMY LIMITED",10033815]
["GROUNDWORK SOUTH AND NORTH TYNESIDE LIMITED",10021185]
["GROUP HORIZON LIMITED",10030502]
["GROW 19 LTD.",10083456]
["GTG TRAINING LIMITED",10030838]
["GUARD BUSINESS SOLUTIONS LIMITED",10063274]
["GUY'S AND ST THOMAS' NHS FOUNDATION TRUST",10011147]
["GYM FREE LIMITED",10084785]
["H.L. HUTCHINSON LIMITED",10064595]
["HACKNEY LONDON BOROUGH COUNCIL",10010792]
["HADDON TRAINING LIMITED",10002841]
["HADLOW COLLEGE",10002843]
["HAIR ACADEMY SOUTH WEST LIMITED",10002850]
["HAIR AND BEAUTY INDUSTRY TRAINING LIMITED",10002834]
["HALESOWEN COLLEGE",10002852]
["HALIFAX OPPORTUNITIES TRUST",10013225]
["HALLS OF IVY BEAUTY ACADEMY LIMITED",10030099]
["HALTON BOROUGH COUNCIL",10002861]
["HAMILTON LODGE SCHOOL AND COLLEGE FOR DEAF CHILDREN",10015703]
["HAMMERSMITH AND FULHAM LONDON BOROUGH COUNCIL",10002868]
["HAMPSHIRE COUNTY COUNCIL",10002872]
["HAMPSHIRE HOSPITALS NHS FOUNDATION TRUST",10037685]
["HAPPY COMPUTERS LIMITED",10002888]
["HARINGEY LONDON BOROUGH COUNCIL",10002859]
["HARINGTON SCHEME LIMITED(THE)",10002896]
["HARLOW COLLEGE",10002899]
["HARPER ADAMS UNIVERSITY",10040812]
["HARPER CRAVEN ASSOCIATES LIMITED",10029337]
["HARRIET ELLIS TRAINING SOLUTIONS LIMITED",10032857]
["HARRIS FEDERATION",10055126]
["HARROW LONDON BOROUGH COUNCIL",10002910]
["HART LEARNING & DEVELOPMENT LTD",10005266]
["HARTLEPOOL BOROUGH COUNCIL",10002916]
["HARTLEPOOL COLLEGE OF FURTHER EDUCATION",10002917]
["HARTPURY COLLEGE OF FURTHER EDUCATION",10080810]
["HAVANT AND SOUTH DOWNS COLLEGE",10005979]
["HAVERING LONDON BOROUGH COUNCIL",10003993]
["HAWK MANAGEMENT (UK) LIMITED",10009600]
["HAYS TRAVEL LIMITED",10030120]
["HCF CATCH LIMITED",10009661]
["HCUC",10007193]
["HEALTH & SAFETY TRAINING LIMITED",10021665]
["HEALTH EDUCATION ENGLAND",10064084]
["HEALTH EDUCATION ENGLAND NORTH EAST",10041332]
["HEALTHCARE FINANCIAL MANAGEMENT ASSOCIATION",10062157]
["HEART OF BIRMINGHAM VOCATIONAL COLLEGE LTD",10046840]
["HEART OF ENGLAND TRAINING LIMITED",10002976]
["HEART OF MERCIA",10064200]
["HEART OF WORCESTERSHIRE COLLEGE",10007977]
["HEATHERCROFT TRAINING SERVICES LIMITED",10002979]
["HEATHERMOUNT SCHOOL",10015866]
["HENSHAWS COLLEGE",10012814]
["HER MAJESTY'S PRISON & PROBATION SERVICE (HMPPS), MINISTRY OF JUSTICE (MOJ)",10011092]
["HER MAJESTY'S REVENUE AND CUSTOMS (HMRC)",10012772]
["HEREFORD COLLEGE OF ARTS",10003022]
["HEREFORDSHIRE AND WORCESTERSHIRE GROUP TRAINING ASSOCIATION LIMITED",10003026]
["HEREFORDSHIRE COUNCIL",10003025]
["HEREFORDSHIRE, LUDLOW, AND NORTH SHROPSHIRE COLLEGE",10003023]
["HEREWARD COLLEGE OF FURTHER EDUCATION",10003029]
["HERITAGE SKILLS ACADEMY LIMITED",10063769]
["HERTFORD REGIONAL COLLEGE",10003035]
["HERTFORDSHIRE COUNTY COUNCIL",10003039]
["HEXAM TRAINING LIMITED",10025998]
["HIBERNIA COLLEGE UK LIMITED",10035578]
["HIGH CLOSE SCHOOL",10017850]
["HIGHFIELDS COMMUNITY ASSOCIATION",10021278]
["HILL HOLT WOOD",10003085]
["HILLINGDON LONDON BOROUGH COUNCIL",10003089]
["HILLINGDON TRAINING LIMITED",10003093]
["HILLS ROAD SIXTH FORM COLLEGE",10003094]
["HIT TRAINING LTD",10012467]
["HOB SALONS LIMITED",10044778]
["HOLLAND & BARRETT RETAIL LIMITED",10081176]
["HOLLYBANK SCHOOL",10015800]
["HOLY CROSS COLLEGE",10003128]
["HOLY FAMILY CATHOLIC PRIMARY SCHOOL",10045987]
["HOMEFIELD COLLEGE ",10003136]
["HOMESERVE MEMBERSHIP LIMITED",10082134]
["HOOPLE LTD",10036333]
["HOPWOOD HALL COLLEGE",10003146]
["HOUNSLOW LONDON BOROUGH COUNCIL",10003165]
["HOUSE OF CLIVE (HAIR AND BEAUTY) LIMITED",10005426]
["HTFT PARTNERSHIP LIMITED",10055777]
["HTP APPRENTICESHIP COLLEGE LTD",10003162]
["HUDDERSFIELD NEW COLLEGE",10003188]
["HUDDERSFIELD TEXTILE TRAINING LIMITED",10003190]
["HUGH BAIRD COLLEGE",10003193]
["HULL BUSINESS TRAINING CENTRE LIMITED",10003197]
["HULL COLLEGE",10003200]
["HUMANKIND CHARITY",10001944]
["HUMBER LEARNING CONSORTIUM",10003207]
["HUMBERSIDE ENGINEERING TRAINING ASSOCIATION LIMITED",10003206]
["HYA TRAINING LIMITED",10003219]
["HYBRID TECHNICAL SERVICES LIMITED",10026620]
["HYDROVIRON LIMITED",10049098]
["HYPER ISLAND LIMITED",10031301]
["I & F LIMITED",10044457]
["IBM UNITED KINGDOM LIMITED",10003234]
["IC TRAINING CENTRE LIMITED",10048326]
["ICON VOCATIONAL TRAINING LIMITED",10003240]
["IGNITE SPORT UK LIMITED",10029736]
["IMPACT FUTURES TRAINING LIMITED",10018916]
["IMPACT LEARNING & DATA SOLUTIONS LIMITED",10022627]
["IMPELLAM GROUP PLC",10065989]
["IN-COMM TRAINING AND BUSINESS SERVICES LIMITED",10003280]
["INDEPENDENT TRAINING AND EDUCATION CONSULTANTS LIMITED",10056428]
["INDEPENDENT TRAINING SERVICES LIMITED",10003289]
["INFOCUS COLLEGE",10012825]
["INFOCUS SCHOOL",10007428]
["INFRA SKILLS LTD",10045007]
["INGFIELD MANOR SCHOOL ",10030237]
["INNERSUMMIT LTD",10057055]
["INNOVATIVE ALLIANCE LTD",10045505]
["INSCAPE HOUSE SCHOOL",10016012]
["INSPIRE & EDUCATE LTD",10056882]
["INSPIRE EDUCATION GROUP",10005077]
["INSPIRE MIDDLESEX COLLEGE LTD",10038183]
["INSPIRING FUTURES THROUGH LEARNING",10059102]
["INSTEP UK LIMITED",10003317]
["INSTITUTE OF CHARTERED ACCOUNTANTS OF SCOTLAND (THE)",10020611]
["INSTITUTION OF RAILWAY OPERATORS LIMITED",10040914]
["INTEC BUSINESS COLLEGES LIMITED",10003347]
["INTEGER TRAINING LIMITED",10019300]
["INTELLIGENCIA TRAINING LIMITED",10062322]
["INTER TRAINING SERVICES LIMITED",10003354]
["INTERTRAIN UK LTD.",10032931]
["INTROTRAIN & FORUM LIMITED",10003380]
["INTROTRAIN (ACE) LIMITED",10034022]
["INTUITIONS LIMITED",10003382]
["INVOLVE SELECTION LIMITED",10081982]
["IODA LIMITED",10062064]
["IPS INTERNATIONAL LIMITED",10003385]
["ISLE OF WIGHT COLLEGE",10003406]
["ISLE OF WIGHT COUNCIL",10003407]
["ISLINGTON LONDON BOROUGH COUNCIL",10003414]
["ITALIA CONTI ACADEMY OF THEATRE ARTS LIMITED(THE)",10003425]
["ITCHEN COLLEGE",10003427]
["ITEC LEARNING TECHNOLOGIES LIMITED",10003429]
["ITEC NORTH EAST LIMITED",10003430]
["ITEC TRAINING SOLUTIONS LTD",10001156]
["IXION HOLDINGS (CONTRACTS) LIMITED",10033758]
["J & E TRAINING CONSULTANTS LIMITED",10003440]
["J G W TRAINING LIMITED",10031399]
["JAG TRAINING LIMITED",10046672]
["JANCETT CHILDCARE & JACE TRAINING LIMITED",10042190]
["JARROLD & SONS LIMITED",10003455]
["JARVIS TRAINING MANAGEMENT LIMITED",10003456]
["JBC SKILLS TRAINING LIMITED",10019314]
["JC TRAINING & CONSULTANCY LTD",10056657]
["JET2.COM LIMITED",10063991]
["JFC  TRAINING COLLEGE LTD",10021254]
["JGA LIMITED",10006710]
["JLMS MANAGEMENT LTD.",10054679]
["JM EXCELLENCE IN TRAINING LTD",10040368]
["JOHN LEGGOTT SIXTH FORM COLLEGE",10003491]
["JOSEPH CHAMBERLAIN SIXTH FORM COLLEGE",10003511]
["JS CONSULT LIMITED",10048831]
["JTL",10003526]
["JUICE TALENT DEVELOPMENT LIMITED",10063435]
["JULIE MAYCOCK",10061312]
["JUNIPER TRAINING LIMITED",10003529]
["JUST IT TRAINING LIMITED",10034940]
["K S TRAINING LIMITED",10036736]
["KAPLAN FINANCIAL LIMITED",10000446]
["KBM TRAINING & RECRUITMENT LTD",10045412]
["KEIR TRAINING & RECRUITMENT LTD",10085949]
["KEITS TRAINING SERVICES LTD",10003571]
["KENDAL COLLEGE",10003558]
["KENT COUNTY COUNCIL",10003570]
["KENT POLICE AND CRIME COMMISSIONER",10012766]
["KENT SCHOOL OF VETERINARY NURSING LIMITED",10066553]
["KEOLIS AMEY DOCKLANDS LIMITED",10064589]
["KETTERING BOROUGH COUNCIL",10003586]
["KEY TRAINING LIMITED",10003593]
["KEYSTONE TRAINING LTD",10024415]
["KEYTURN TRAINING LIMITED",10025748]
["KIDS PLANET DAY NURSERIES LIMITED",10066783]
["KING EDWARD VI COLLEGE STOURBRIDGE",10003625]
["KING'S COLLEGE LONDON",10003645]
["KINGSTON MAURWARD COLLEGE",10003676]
["KINGSTON UNIVERSITY",10003678]
["KINGSTON UPON HULL CITY COUNCIL",10003198]
["KINGSWOOD LEARNING AND LEISURE GROUP LIMITED",10042014]
["KIRKLEES COLLEGE",10003189]
["KIRKLEES METROPOLITAN COUNCIL",10003692]
["KIWI EDUCATION LTD",10045085]
["KMF PRECISION SHEET METAL LIMITED",10025969]
["KMS KENT LIMITED",10067343]
["KNIGHTS TRAINING ACADEMY LIMITED",10032896]
["KNOWLEDGEBRIEF LIMITED",10038982]
["KNOWSLEY METROPOLITAN BOROUGH COUNCIL",10003709]
["KPMG LLP",10003717]
["KRESTON REEVES LLP",10061591]
["KWIK-FIT (GB) LIMITED",10003724]
["KYP KNOW YOUR POTENTIAL CONSULTANCY LTD",10032315]
["L&F TRAINING LTD.",10031526]
["L.I.T.S. LIMITED",10003728]
["LAGAT LIMITED",10003744]
["LAKES COLLEGE WEST CUMBRIA",10003753]
["LAKESIDE EARLY ADULT PROVISION - LEAP COLLEGE (WARGRAVE HOUSE LTD)",10040375]
["LAMBETH LONDON BOROUGH COUNCIL",10003995]
["LANCASHIRE COMBINED FIRE AUTHORITY",10012965]
["LANCASHIRE COUNTY COUNCIL",10003765]
["LANCASHIRE TEACHING HOSPITALS NHS FOUNDATION TRUST",10011018]
["LANCASTER AND MORECAMBE COLLEGE",10003768]
["LANCASTER GIRLS' GRAMMAR SCHOOL",10032350]
["LANCASTER TRAINING SERVICES LIMITED",10003771]
["LANDAU LIMITED",10008330]
["LANDMARKS",10003774]
["LANGDON COLLEGE",10003775]
["LANGSIDE SCHOOL",10016306]
["LAWTONASH TRAINING SERVICES LTD",10036772]
["LD TRAINING SERVICES LIMITED",10027803]
["LDN APPRENTICESHIPS LTD",10031971]
["LEADERS IN BUSINESS LTD",10065654]
["LEADERSHIP IN ACTION LIMITED",10057497]
["LEAGUE FOOTBALL EDUCATION",10003808]
["LEAN CONSTRUCT LIMITED",10065010]
["LEAN EDUCATION AND DEVELOPMENT LIMITED",10003274]
["LEAN ENABLED GROUP LTD",10088153]
["LEAPING MAN LEARNING LIMITED",10040476]
["LEARNING AND DEVELOPMENT BUREAU LTD",10047966]
["LEARNING CONCEPTS LIMITED",10010534]
["LEARNING CURVE (DEVELOPMENT) LIMITED",10063806]
["LEARNING CURVE GROUP LIMITED",10008935]
["LEARNING FOR EXCELLENCE LTD",10065578]
["LEARNING FOR FUTURES LTD",10028279]
["LEARNING INNOVATIONS TRAINING TEAM LIMITED",10003834]
["LEARNING SKILLS PARTNERSHIP LTD",10032740]
["LEARNMORE NETWORK LIMITED",10045077]
["LEEDS ARTS UNIVERSITY",10003854]
["LEEDS BECKETT UNIVERSITY",10003861]
["LEEDS CITY COUNCIL",10003853]
["LEEDS COLLEGE OF BUILDING",10003855]
["LEEDS TEACHING HOSPITALS NATIONAL HEALTH SERVICE TRUST",10011138]
["LEEDS TRINITY UNIVERSITY",10003863]
["LEICESTER CITY COUNCIL",10003866]
["LEICESTER COLLEGE",10003867]
["LEICESTERSHIRE COUNTY COUNCIL",10003872]
["LEIGH ACADEMIES TRUST",10052832]
["LEONARDO LIMITED",10020022]
["LEONARDO UK LTD",10061421]
["LESLIE FRANCES (HAIR FASHIONS) LIMITED",10003889]
["LET ME PLAY LIMITED",10040664]
["LEWISHAM LONDON BOROUGH COUNCIL",10003895]
["LEWTAY TRAINING LIMITED",10043533]
["LEX HYGIENE LTD",10085478]
["LEYTON SIXTH FORM COLLEGE",10003899]
["LIBERTY TRAINING LTD",10041272]
["LIBRA EUROPE CONSULTING LTD",10066838]
["LIFEBRIDGE ASEND",10055015]
["LIFESKILLS SOLUTIONS LIMITED",10003909]
["LIFETIME TRAINING GROUP LIMITED",10003915]
["LIFEWORKS CHARITY LIMITED",10046853]
["LIGA (UK) LTD",10034315]
["LIGHTHOUSE (TRAINING AND DEVELOPMENT) LTD",10053869]
["LIGHTHOUSE FUTURES TRUST",10067032]
["LIGHTHOUSE LEARNING TRUST",10066107]
["LIMM SKILLS ACADEMY LIMITED",10043823]
["LINCOLN COLLEGE",10003928]
["LINCOLNSHIRE COMMUNITY HEALTH SERVICES NHS TRUST",10056018]
["LINCOLNSHIRE COUNTY COUNCIL",10003932]
["LINDEN MANAGEMENT (UK) LIMITED",10027616]
["LINK19 COLLEGE LTD",10067674]
["LINKAGE COMMUNITY TRUST",10003940]
["LIONHEART IN THE COMMUNITY LIMITED",10032250]
["LITE (STOCKPORT) LIMITED",10008354]
["LITTLE LEARNERS MONTESSORI LTD",10083232]
["LIVABILITY NASH COLLEGE",10012810]
["LIVE BETTER LOCATIONS LIMITED",10064146]
["LIVERPOOL CITY COUNCIL",10003954]
["LIVERPOOL JOHN MOORES UNIVERSITY",10003957]
["LIVERPOOL THEATRE SCHOOL & COLLEGE LIMITED",10003959]
["LMPQ LIMITED",10040426]
["LOCOMOTIVATION LTD.",10003976]
["LOGISTICS SKILLS & CONSULTANCY LTD",10039742]
["LOMAX TRAINING SERVICES LIMITED",10003981]
["LONDON & SOUTH EASTERN RAILWAY LIMITED",10026044]
["LONDON AMBULANCE SERVICE NHS TRUST",10042155]
["LONDON CACTUS LIMITED",10031745]
["LONDON COLLEGE OF BUSINESS AND LAW LIMITED",10008379]
["LONDON DESIGN AND ENGINEERING UTC",10057010]
["LONDON EXAMINATIONS BOARD LIMITED",10043715]
["LONDON GENERAL TRANSPORT SERVICES LIMITED",10084167]
["LONDON LEARNING CONSORTIUM COMMUNITY INTEREST COMPANY",10021684]
["LONDON METROPOLITAN COLLEGE LIMITED",10064332]
["LONDON METROPOLITAN UNIVERSITY",10004048]
["LONDON NORTH EASTERN RAILWAY LIMITED",10085306]
["LONDON PROFESSIONAL COLLEGE LTD",10027453]
["LONDON SCHOOL OF EDUCATION AND MANAGEMENT LIMITED",10056040]
["LONDON SKILLS & DEVELOPMENT NETWORK LIMITED",10022507]
["LONDON SOUTH BANK UNIVERSITY",10004078]
["LONDON SOUTH EAST COLLEGES",10000948]
["LONDON VESTA COLLEGE LIMITED",10024404]
["LONDON VOCATIONAL COLLEGE LIMITED",10043813]
["LONG ROAD SIXTH FORM COLLEGE",10004088]
["LOOKFANTASTIC TRAINING LIMITED",10012477]
["LORETO COLLEGE",10004108]
["LOTUS EDUCATION LTD",10066160]
["LOUGHBOROUGH COLLEGE",10004112]
["LOUGHBOROUGH UNIVERSITY",10004113]
["LOUISE SETTON",10032653]
["LOVE AND TATE LIMITED",10020380]
["LRTT LIMITED",10020604]
["LTE GROUP",10023139]
["LUL NOMINEE BCV LIMITED",10026311]
["LUMINATE EDUCATION GROUP",10024962]
["LUTON BOROUGH COUNCIL",10004124]
["LUTON INTERNATIONAL COLLEGE LIMITED",10032624]
["LUTON SIXTH FORM COLLEGE",10004125]
["LYNHER TRAINING LIMITED",10042291]
["LYNWOOD VETS LIMITED",10055021]
["M GROUP SERVICES LIMITED",10088195]
["M I T SKILLS LIMITED",10004440]
["MACCLESFIELD COLLEGE",10004144]
["MAINSTREAM TRAINING LIMITED",10009491]
["MAKERS ACADEMY LIMITED",10041057]
["MANAGEMENT TRAINING & DEVELOPMENT LTD",10024659]
["MANCHESTER CITY COUNCIL",10004175]
["MANCHESTER DIGITAL LIMITED",10055091]
["MANCHESTER METROPOLITAN UNIVERSITY",10004180]
["MANCHESTER UNIVERSITY NHS FOUNDATION TRUST",10065854]
["MANOR GREEN SCHOOL",10018030]
["MANTRA LEARNING LIMITED",10004181]
["MANUFACTURING EXCELLENCE LIMITED",10016399]
["MARITIME + ENGINEERING COLLEGE NORTH WEST",10003748]
["MARK BETTS HAIR EDUCATION LIMITED",10037445]
["MARR CORPORATION LIMITED",10024124]
["MARSHALL OF CAMBRIDGE (HOLDINGS) LIMITED",10084918]
["MARTEC TRAINING LIMITED",10067528]
["MARTINEX LIMITED",10000994]
["MARY HARE",10013987]
["MARY P'S LTD",10082565]
["MARY WARD SETTLEMENT",10007875]
["MASTER CUTTERS LIMITED",10004232]
["MAYBIRD TRAINING LTD",10085567]
["MAYER ENVIRONMENTAL LTD.",10061842]
["MBKB LTD",10054216]
["MCARTHUR DEAN TRAINING LIMITED",10004257]
["MCCRORY LIMITED",10066547]
["MEADOWHALL TRAINING LIMITED",10010905]
["MEADOWS SCHOOL",10017907]
["MEAT EAST ANGLIA TRADES (IPSWICH) LIMITED",10004140]
["MEATH SCHOOL",10040604]
["MED LEARN TRAINING LIMITED",10044523]
["MEDI PROSPECTS LTD",10028909]
["MEDIPRO LIMITED",10023428]
["MEDWAY COUNCIL",10004285]
["MEDWAY NHS FOUNDATION TRUST CHARITABLE FUND ",10082756]
["MELANIE MARTIN",10063556]
["MERCEDES-BENZ CARS UK LIMITED",10022856]
["MERCIA COLLEGE LIMITED",10031230]
["MERCIA TRAINING LTD",10084703]
["MERCURI INTERNATIONAL (UK) LIMITED",10056013]
["MERCURY TRAINING SERVICES LTD",10023787]
["MERIT SKILLS LIMITED",10030102]
["MERLIN SUPPLY CHAIN SOLUTIONS LIMITED",10055259]
["MERSEYSIDE FIRE AND RESCUE AUTHORITY",10034301]
["MERTON BOROUGH COUNCIL",10003996]
["METADATA LIMITED",10026165]
["METRO BANK PLC",10056801]
["MI COMPUTSOLUTIONS INCORPORATED",10018328]
["MICHAEL D AKERS MANAGEMENT CONSULTING ",10082053]
["MICHAEL MCCORMACK",10012892]
["MIDDLESBROUGH COLLEGE",10004344]
["MIDDLESBROUGH COUNCIL",10004343]
["MIDDLESEX UNIVERSITY",10004351]
["MID-KENT COLLEGE",10004340]
["MIDLAND GROUP TRAINING SERVICES LIMITED",10004355]
["MILLBROOK MANAGEMENT SERVICES LIMITED",10005264]
["MILTON KEYNES CHRISTIAN FOUNDATION LIMITED",10004374]
["MILTON KEYNES COLLEGE",10004375]
["MILTON KEYNES COUNCIL",10004376]
["MINDFLEX PSYCHOLOGY LIMITED",10084975]
["MINERAL PRODUCTS QUALIFICATIONS COUNCIL",10026268]
["MITRE GROUP LIMITED",10024055]
["MOAT HOUSE",10016839]
["MOBIUS PARTNERS LIMITED",10083146]
["MODE TRAINING LTD",10004406]
["MOMENTUM RECRUITMENT LIMITED",10043060]
["MOMENTUM TRAINING AND CONSULTANCY LTD",10044729]
["MOOR HOUSE SCHOOL & COLLEGE",10016541]
["MOOR TRAINING LIMITED",10061548]
["MORLEY COLLEGE LIMITED",10004432]
["MORTHYNG GROUP LIMITED",10004434]
["MOSAIC SPA AND HEALTH CLUBS (CONTRACT MANAGEMENT) LIMITED",10002489]
["MOULTON COLLEGE",10004442]
["MPOWER TRAINING SOLUTIONS LTD",10023896]
["MTR CORPORATION (CROSSRAIL) LIMITED",10058125]
["MULBERRY BUSH SCHOOL",10032279]
["MULTI TRADES TRAINING LTD",10081713]
["MULTIVERSE GROUP LIMITED",10055902]
["MUNTHAM HOUSE SCHOOL",10016441]
["MVRRS TRAINING LIMITED",10042221]
["MY HOME MOVE LTD",10062950]
["MY LIFE LEGACY",10055517]
["MYBE AWARDS LTD",10065702]
["MYERSCOUGH COLLEGE",10004478]
["MYF TRAINING LIMITED",10032126]
["N A COLLEGE TRUST",10029234]
["N D A FOUNDATION",10038501]
["NACRO",10004486]
["NATIONAL AUTISTIC SOCIETY(THE)",10004497]
["NATIONAL BUSINESS COLLEGE LIMITED",10004499]
["NATIONAL COLLEGE FOR ADVANCED TRANSPORT AND INFRASTRUCTURE",10088193]
["NATIONAL GRID PLC",10004512]
["NATIONAL HORSERACING COLLEGE LIMITED",10004748]
["NATIONAL STAR FOUNDATION",10004527]
["NATIONAL TRAINING & SKILLS LTD",10056735]
["NATIONAL TYRE SERVICE LIMITED",10004530]
["NATIONWIDE ENERGY TRAINING SERVICES LTD",10046315]
["NATS (EN ROUTE) PUBLIC LIMITED COMPANY",10049084]
["NCG",10004599]
["NCH AT NORTHEASTERN LIMITED",10048199]
["NEBULA CONSULTANCY SERVICES LTD",10065593]
["NELSON AND COLNE COLLEGE",10004552]
["NERO HOLDINGS LIMITED",10067128]
["NETCOM TRAINING LTD",10045231]
["NETWORK RAIL INFRASTRUCTURE LIMITED",10013544]
["NEW CITY COLLEGE",10006963]
["NEW COLLEGE DURHAM",10004576]
["NEW COLLEGE SWINDON",10004579]
["NEW COLLEGE WORCESTER (NMSS)",10040382]
["NEW GENERATION TRAINING AND CONSULTANCY LIMITED",10025712]
["NEW LONDON EDUCATIONAL TRUST",10034044]
["NEW MODEL BUSINESS ACADEMY LIMITED",10061867]
["NEWBURY COLLEGE",10004596]
["NEWCASTLE AND STAFFORD COLLEGES GROUP",10004603]
["NEWCASTLE UPON TYNE CITY COUNCIL",10004601]
["NEWCROSS HEALTHCARE SOLUTIONS LIMITED",10081114]
["NEWFRIARS COLLEGE",10068204]
["NEWHAM COLLEGE OF FURTHER EDUCATION",10004607]
["NEWHAM LONDON BOROUGH COUNCIL",10003997]
["NEWHAM SIXTH FORM COLLEGE",10004608]
["NEXT LEVEL IMPACT LIMITED",10040170]
["NEXTSTEP TRAINING LIMITED",10034527]
["N-GAGED TRAINING LIMITED",10026650]
["NHBC SERVICES LIMITED",10016401]
["NHTA LIMITED",10004632]
["NINE DOTS DEVELOPMENT LIMITED",10062335]
["NISHKAM CIVIC ASSOCIATION",10012442]
["NISSAN MOTOR MANUFACTURING (UK) LIMITED",10026702]
["NORFOLK COUNTY COUNCIL",10004657]
["NORMAN MACKIE & ASSOCIATES LIMITED",10004665]
["NORTH BRISTOL NATIONAL HEALTH SERVICE TRUST",10025909]
["NORTH EAST AMBULANCE SERVICE NHS FOUNDATION TRUST",10046499]
["NORTH EAST AUTISM SOCIETY",10063562]
["NORTH EAST SURREY COLLEGE OF TECHNOLOGY (NESCOT)",10004686]
["NORTH HAMPSHIRE EDUCATION ALLIANCE",10066108]
["NORTH HERTFORDSHIRE COLLEGE",10004690]
["NORTH HUMBERSIDE MOTOR TRADES GROUP TRAINING ASSOCIATION",10009085]
["NORTH KENT COLLEGE",10004721]
["NORTH LANCS. TRAINING GROUP LIMITED(THE)",10004692]
["NORTH LINCOLNSHIRE COUNCIL",10004694]
["NORTH LONDON GARAGES GTA",10009257]
["NORTH NORTHAMPTONSHIRE COUNCIL",10004733]
["NORTH OF ENGLAND TRAINING LIMITED",10034302]
["NORTH SOMERSET COUNCIL",10004711]
["NORTH STAFFORDSHIRE ENGINEERING GROUP TRAINING ASSOCIATION LIMITED",10028012]
["NORTH TYNESIDE METROPOLITAN BOROUGH COUNCIL",10004714]
["NORTH WALES TRAINING LTD.",10004716]
["NORTH WARWICKSHIRE AND SOUTH LEICESTERSHIRE COLLEGE",10004718]
["NORTH WEST AMBULANCE SERVICE NATIONAL HEALTH SERVICE TRUST",10021306]
["NORTH WEST COMMUNITY SERVICES TRAINING LTD",10004720]
["NORTH WEST TRAINING COUNCIL",10004723]
["NORTH YORKSHIRE BUSINESS AND EDUCATION PARTNERSHIP LIMITED",10004726]
["NORTH YORKSHIRE COUNTY COUNCIL",10004727]
["NORTHAMPTON COLLEGE",10007011]
["NORTHCODERS TECHED LIMITED",10036956]
["NORTHERN CARE TRAINING LIMITED",10013515]
["NORTHERN COLLEGE FOR RESIDENTIAL ADULT EDUCATION LIMITED(THE)",10004739]
["NORTHERN COUNTIES SCHOOL",10016637]
["NORTHERN POWERGRID (YORKSHIRE) PLC",10063508]
["NORTHERN REGENERATION CIC",10062447]
["NORTHERN TRAINING ACADEMY LIMITED",10052585]
["NORTHERN TRAINS LIMITED",10085493]
["NORTHUMBRIA HEALTHCARE NHS FOUNDATION TRUST",10049052]
["NORTHWEST EDUCATION AND TRAINING LIMITED",10041486]
["NORTON WEBB LIMITED",10018297]
["NOTRE DAME CATHOLIC SIXTH FORM COLLEGE",10004785]
["NOTTINGHAM CITY COUNCIL",10004791]
["NOTTINGHAM COLLEGE",10004577]
["NOTTINGHAM TRENT UNIVERSITY",10004797]
["NOTTINGHAMSHIRE COMBINED FIRE AND RESCUE AUTHORITY ",10037119]
["NOTTINGHAMSHIRE COUNTY COUNCIL",10004801]
["NOTTINGHAMSHIRE TRAINING GROUP LIMITED",10000565]
["NOVA PAYROLL MANAGEMENT SERVICES LIMITED",10038387]
["NOVALIS TRUST",10032637]
["NOWSKILLS LIMITED",10040775]
["NPL MANAGEMENT LIMITED",10047973]
["NSL LIMITED",10030740]
["NTG TRAINING LTD",10024833]
["NUNNYKIRK CENTRE FOR DYSLEXIA",10016733]
["OAKBRIDGE SPECIAL EDUCATION",10068038]
["OAKLANDS COLLEGE",10004835]
["OAKTHORPE PRIMARY SCHOOL",10045988]
["OASIS CARE AND TRAINING AGENCY (OCTA)",10032256]
["OASIS COMMUNITY LEARNING",10058190]
["ODT TRAINING PROFESSIONALS LIMITED",10062680]
["OLDHAM ENGINEERING GROUP TRAINING ASSOCIATION LIMITED (THE)",10004856]
["OLDHAM METROPOLITAN BOROUGH COUNCIL",10004858]
["OMNI ACADEMY OF BEAUTY LIMITED",10044334]
["ONE HOUSING GROUP LIMITED",10064883]
["ONE TO ONE SUPPORT SERVICES LIMITED",10022596]
["OPENCLASSROOMS LTD",10065318]
["OPTIMUM SKILLS LIMITED",10043661]
["ORACLE TRAINING CONSULTANTS LIMITED",10004895]
["ORANGE MOON TRAINING LIMITED",10054833]
["ORCHARD HILL COLLEGE",10054747]
["ORPHEUS CENTRE",10009111]
["ORTHODONTIC TEAM TRAINING LIMITED",10081890]
["OUR TRAINING DEPARTMENT LTD",10027505]
["OXFORD BROOKES UNIVERSITY",10004930]
["OXFORD ENERGY ACADEMY LIMITED",10041773]
["OXFORD HEALTH NHS FOUNDATION TRUST",10021243]
["OXFORD PROFESSIONAL EDUCATION GROUP LIMITED",10004935]
["OXFORD UNIVERSITY HOSPITALS NHS FOUNDATION TRUST",10062065]
["OXFORDSHIRE COUNTY COUNCIL",10004926]
["P.T.P. TRAINING LIMITED",10011880]
["PACES HIGH GREEN SCHOOL FOR CONDUCTIVE EDUCATION",10027310]
["PADDINGTON DEVELOPMENT TRUST",10019380]
["PARAGON EDUCATION & SKILLS LIMITED",10004977]
["PARAGON TRAINING ACADEMY LTD",10056315]
["PARAMOUNT ASSESSMENT LTD",10085916]
["PARAYHOUSE SCHOOL",10023008]
["PARENTA TRAINING LIMITED",10021754]
["PARETO LAW LIMITED",10025697]
["PARK EDUCATION & TRAINING LIMITED",10032937]
["PARK EDUCATION AND TRAINING CENTRE LIMITED",10054768]
["PARKDEAN RESORTS UK LIMITED",10065761]
["PARTNERSHIP TRAINING LIMITED",10036548]
["PATHWAY FIRST LIMITED",10021793]
["PEACH ORATOR LIMITED",10013198]
["PEARSON COLLEGE LIMITED",10042570]
["PENGWERN COLLEGE",10012806]
["PENNINE CAMPHILL COMMUNITY",10005036]
["PENSHAW VIEW TRAINING LIMITED",10038931]
["PENTLAND ASSESSMENT CENTRES LTD",10005041]
["PEOPLEPLUS GROUP LIMITED",10036431]
["PERCY HEDLEY HEDLEYS COLLEGE",10048022]
["PERCY HEDLEY SCHOOL",10018021]
["PERFORMANCE LEARNING GROUP LTD",10052607]
["PERSONAL TRACK SAFETY LTD",10044197]
["PERSONAL TRAINER LTD",10034320]
["PETA LIMITED",10005064]
["PETER SYMONDS COLLEGE",10005072]
["PETERBOROUGH CITY COUNCIL",10005074]
["PETERBOROUGH SKILLS LIMITED",10048439]
["PETERHOUSE SCHOOL",10017150]
["PETROC",10004676]
["PET-XI TRAINING LIMITED",10021539]
["PGL TRAINING (PLUMBING) LIMITED",10008426]
["PGL TRAVEL LIMITED",10005086]
["PHEMAGRACE LTD",10028015]
["PHILIPS HAIR SALONS LIMITED",10005089]
["PHOENIX LEARNING AND CARE LIMITED",10004841]
["PHOENIX TRAINING SERVICES (MIDLANDS) LIMITED",10005094]
["PHOENIX4TRAINING LLP",10024054]
["PHX TRAINING LIMITED",10012179]
["PHYSICAL EDUCATION & ACTIVE KIDS LTD",10084933]
["PIELD HEATH HOUSE RC SCHOOL",10017187]
["PIER TECHNOLOGY LTD",10040417]
["PILOT IMS LIMITED",10005101]
["PIZZA HUT (U.K.) LIMITED",10043575]
["PLATO TRAINING (UK) LTD",10023592]
["PLT TRAINING LTD",10047048]
["PLUMPTON COLLEGE",10005124]
["PLYMOUTH ARGYLE FOOTBALL IN THE COMMUNITY TRUST",10035178]
["PLYMOUTH CITY COUNCIL",10005126]
["PLYMOUTH COLLEGE OF ART",10005127]
["PLYMOUTH TRAINING AND CONSULTANCY LTD",10054814]
["POMPEY IN THE COMMUNITY",10031111]
["POPCORN LEARNING MEDIA LIMITED",10063554]
["POPLAR HOUSING AND REGENERATION COMMUNITY ASSOCIATION LIMITED",10008893]
["PORT OF TILBURY LONDON LIMITED",10041165]
["PORTFIELD SCHOOL",10017071]
["PORTLAND COLLEGE",10005151]
["PORTSMOUTH CITY COUNCIL",10005157]
["PORTSMOUTH COLLEGE",10005158]
["POSITIVE APPROACH ACADEMY FOR HAIR LIMITED",10023776]
["POTENTIAL REALISED - HR & TRAINING LIMITED",10085193]
["POULTEC TRAINING LIMITED",10005172]
["PRACTICE MANAGERS EDUCATION & TRAINING LTD",10061640]
["PRAGMATIC CONSULTING LTD",10056336]
["PRE-SCHOOL LEARNING ALLIANCE",10000239]
["PRESIDENCY LONDON COLLEGE LIMITED",10035735]
["PRESTON COLLEGE",10005200]
["PREVISTA LTD",10005204]
["PRIMARY GOAL LTD",10054804]
["PRIME LIFE LIMITED",10041329]
["PRIORITY MANAGEMENT LIMITED",10005222]
["PROACTIVE IN PARTNERSHIP TRAINING LIMITED",10035380]
["PRO-ACTIVE SAFETY LIMITED",10053948]
["PROFESSIONAL APPRENTICESHIPS LTD",10065020]
["PROFESSIONAL DEVELOPMENT AND TRAINING LTD",10044419]
["PROFESSIONAL FUTURES LIMITED",10061316]
["PROFESSIONAL QUALITY MANAGEMENT SERVICES LIMITED",10043841]
["PROFESSIONAL TRAINING SOLUTIONS LIMITED",10021391]
["PROFILE DEVELOPMENT AND TRAINING LIMITED",10028938]
["PROFOUND SERVICES LIMITED",10022358]
["PROJECTING SUCCESS LTD",10082136]
["PROSPECT TRAINING (YORKSHIRE) LIMITED",10013658]
["PROSPECT TRAINING SERVICES (GLOUCESTER) LIMITED",10005261]
["PROVEK LIMITED",10028207]
["PROVQ LIMITED",10022503]
["PURPLE BEARD LTD",10083150]
["QA LIMITED",10003375]
["QDOS TRAINING LIMITED",10021018]
["QINETIQ LIMITED",10002264]
["QOMMUNICATE LTD",10032616]
["QTS-GLOBAL LTD",10036134]
["QUALIA AESTHETICS LIMITED",10054006]
["QUALITRAIN LIMITED",10027438]
["QUALITY OF CARE LIMITED",10062203]
["QUBE QUALIFICATIONS AND DEVELOPMENT LIMITED",10005319]
["QUEEN ALEXANDRA COLLEGE",10005320]
["QUEEN ELIZABETH SIXTH FORM COLLEGE",10005325]
["QUEEN MARY UNIVERSITY OF LONDON",10007775]
["QUEST TRAINING SOUTH EAST LTD",10036516]
["QUEST VOCATIONAL TRAINING LIMITED",10040329]
["R.E.A.L. EDUCATION LIMITED",10036686]
["RAINHILL HIGH SCHOOL",10062850]
["RAISE THE BAR LIMITED",10025429]
["RAPID IMPROVEMENT LIMITED",10019105]
["RAPID RESPONSE MEDICAL SERVICES LTD",10087278]
["RAVENSBOURNE UNIVERSITY LONDON",10005389]
["RAYTHEON SYSTEMS LIMITED",10024704]
["REACH4SKILLS TRAINING LTD",10048229]
["READING BOROUGH COUNCIL",10005398]
["REAL SKILLS TRAINING LTD",10043980]
["REALISE LEARNING AND EMPLOYMENT LIMITED",10034309]
["REASEHEATH COLLEGE",10005404]
["REBUS TRAINING LTD",10032658]
["REDBRIDGE LONDON BOROUGH COUNCIL",10005412]
["REDCAR AND CLEVELAND BOROUGH COUNCIL",10005413]
["REDSKY LEARNING LIMITED",10044792]
["REED BUSINESS SCHOOL LIMITED",10005422]
["REED SPECIALIST RECRUITMENT LIMITED",10049552]
["REGENT COLLEGE",10008456]
["RELEASE POTENTIAL LTD",10025330]
["RELX (UK) LIMITED",10023129]
["REMIT GROUP LIMITED",10023047]
["RENTOKIL INITIAL (1896) LIMITED",10062059]
["RESOURCES (N E) LIMITED",10024686]
["RESULTS CONSORTIUM LIMITED",10023871]
["REWARDS TRAINING RECRUITMENT CONSULTANCY LIMITED",10005457]
["RHG CONSULT LTD",10029195]
["RICHARD HUISH COLLEGE",10005465]
["RICHMOND AND HILLCROFT ADULT AND COMMUNITY COLLEGE",10003088]
["RICHMOND TRAINING ACADEMY LIMITED",10036240]
["RICHMOND UPON THAMES COLLEGE",10005469]
["RICHMOND UPON THAMES LONDON BOROUGH COUNCIL",10007362]
["RIGHT TRACK SOCIAL ENTERPRISE LIMITED",10034517]
["RISUAL LIMITED",10052903]
["RIVERSIDE COLLEGE",10002863]
["RIVERSIDE TRAINING (SPALDING) LTD",10036865]
["RIVERSIDE TRAINING LIMITED",10005488]
["RIVIERA TUITION LIMITED",10083548]
["RM TRAINING (UK) LIMITED",10040011]
["RNIB SUNSHINE HOUSE SCHOOL",10040605]
["RNN GROUP",10005534]
["ROAD HAULAGE ASSOCIATION LIMITED",10026420]
["ROCHDALE BOROUGH COUNCIL",10005508]
["ROCHDALE TRAINING ASSOCIATION LIMITED",10005509]
["ROCKET TRAINING LIMITED",10005514]
["ROEHAMPTON UNIVERSITY",10007776]
["ROMNEY RESOURCE 2000 LTD",10005521]
["ROOTS AND SHOOTS",10005522]
["ROSEWOOD MANAGEMENT SERVICES LIMITED",10024815]
["ROTHERHAM BOROUGH COUNCIL",10005535]
["ROTHERHAM OPPORTUNITIES COLLEGE LIMITED",10083399]
["ROUTES4LIFE LIMITED",10067684]
["ROYAL AIR FORCE",10033441]
["ROYAL BOROUGH OF GREENWICH",10003990]
["ROYAL BOROUGH OF KENSINGTON AND CHELSEA",10005548]
["ROYAL BOROUGH OF KINGSTON UPON THAMES",10005549]
["ROYAL BOROUGH OF WINDSOR AND MAIDENHEAD",10005550]
["ROYAL COLLEGE MANCHESTER (SEASHELL TRUST)",10024772]
["ROYAL DEVON AND EXETER NHS FOUNDATION TRUST",10024938]
["ROYAL FREE LONDON NHS FOUNDATION TRUST",10058083]
["ROYAL MENCAP SOCIETY",10005557]
["ROYAL NATIONAL COLLEGE FOR THE BLIND",10005558]
["ROYAL NAVY",10033438]
["ROYAL SCHOOL FOR THE BLIND (LIVERPOOL)",10017455]
["ROYAL SCHOOL FOR THE DEAF DERBY",10010767]
["ROYAL SCHOOL, MANCHESTER",10030284]
["RPC CONTAINERS LIMITED",10054802]
["RSR SPORTS LIMITED",10043779]
["RUNSHAW COLLEGE",10005575]
["RUNWAY APPRENTICESHIPS LIMITED",10049149]
["RUNWELL COMMUNITY PRIMARY SCHOOL",10034267]
["RUSKIN COLLEGE",10005583]
["RUSKIN MILL COLLEGE",10009031]
["RUTHERFORD SEARCH LTD",10085024]
["RUTLAND COUNTY COUNCIL",10005586]
["RWP TRAINING LIMITED",10005588]
["S & B AUTOMOTIVE ACADEMY LIMITED",10005599]
["S.A.M.B.",10023808]
["S.W. DURHAM TRAINING LIMITED",10006005]
["SAKS (EDUCATION) LIMITED",10005642]
["SALFORD AND TRAFFORD ENGINEERING GROUP TRAINING ASSOCIATION LIMITED",10006317]
["SALFORD CITY COLLEGE",10005032]
["SALFORD ROYAL NHS FOUNDATION TRUST",10034346]
["SALUTEM LIMITED",10044666]
["SANDWELL AND WEST BIRMINGHAM HOSPITALS NATIONAL HEALTH SERVICE TRUST",10010635]
["SANDWELL COLLEGE",10005669]
["SANDWELL METROPOLITAN BOROUGH COUNCIL",10005671]
["SAPPHIRE LOGISTICS & CONSULTANCY LTD",10082452]
["SB SKILLS SOLUTIONS LTD",10040792]
["SBC TRAINING LIMITED",10033746]
["SCARBOROUGH SIXTH FORM COLLEGE",10005687]
["SCCU LTD",10036794]
["SCHOOL OF MARKETING LONDON LTD",10084871]
["SCL EDUCATION & TRAINING LIMITED",10043208]
["SCREWFIX DIRECT LIMITED",10062910]
["SECOM PLC",10062562]
["SEETEC BUSINESS TECHNOLOGY CENTRE LIMITED",10005735]
["SEFTON METROPOLITAN BOROUGH COUNCIL",10005738]
["SELBY COLLEGE",10005741]
["SEMESTER: LEARNING AND DEVELOPMENT LIMITED",10048806]
["SENSE COLLEGE",10005748]
["SENSE COLLEGE LOUGHBOROUGH",10027384]
["SERCO HOLDINGS LIMITED",10083445]
["SERCO LIMITED",10005752]
["SEVERN TRENT PLC",10087386]
["SEYMOUR DAVIES LTD.",10005769]
["SHE COMPLIANCY LIMITED",10047426]
["SHEARS ACADEMY LIMITED",10021585]
["SHEFFIELD CITY COUNCIL",10002244]
["SHEFFIELD COLLEGE, THE",10005788]
["SHEFFIELD HALLAM UNIVERSITY",10005790]
["SHEFFIELD WEDNESDAY FOOTBALL CLUB COMMUNITY PROGRAMME",10034300]
["SHEILING COLLEGE",10038981]
["SHELDRAKE TRAINING LIMITED",10063519]
["SHIPLEY COLLEGE",10005810]
["SHOWCASE TRAINING LTD",10048801]
["SHREEJI TRAINING LTD",10041319]
["SHREWSBURY COLLEGES GROUP",10005822]
["SIEMENS ENERGY INDUSTRIAL TURBOMACHINERY LIMITED",10005835]
["SIEMENS MOBILITY LIMITED",10085356]
["SIEMENS PUBLIC LIMITED COMPANY",10013362]
["SIGMA UK GROUP LIMITED",10035469]
["SIGTA LIMITED",10005839]
["SIMIAN RISK MANAGEMENT LIMITED",10022567]
["SIMPLY ACADEMY LTD",10042152]
["SIMPLY ONE STOP LIMITED",10028965]
["SIR GEORGE MONOUX COLLEGE",10005859]
["SKEGNESS COLLEGE OF VOCATIONAL TRAINING LIMITED",10005883]
["SKERN LODGE LIMITED",10005886]
["SKILLCERT LIMITED",10061833]
["SKILLNET LIMITED",10005891]
["SKILLS COLLEGE UK LIMITED",10045354]
["SKILLS CONSULTANTS LTD",10048827]
["SKILLS EDGE TRAINING LTD",10030249]
["SKILLS FOR INDEPENDENCE LIMITED",10068234]
["SKILLS FOR SECURITY LIMITED",10010523]
["SKILLS NORTH EAST LIMITED",10028094]
["SKILLS OFFICE NETWORK LTD",10082140]
["SKILLS RECRUITMENT LIMITED",10019711]
["SKILLS REPUBLIC LTD",10063252]
["SKILLS TEAM LTD",10012834]
["SKILLS TO GROUP LIMITED",10005277]
["SKILLS TRAINING UK LIMITED",10005897]
["SKILLS4STEM LTD.",10062041]
["SKILLWISE TRAINING UK LTD",10033209]
["SLOUGH BOROUGH COUNCIL",10005916]
["SMART GAS TRAINING & ASSESSMENT CENTRE LIMITED",10064088]
["SMART TRAINING AND RECRUITMENT LIMITED",10005927]
["SODEXO LIMITED",10005936]
["SOFTOOLS LIMITED",10068400]
["SOLENT UNIVERSITY, SOUTHAMPTON",10006022]
["SOLIHULL COLLEGE AND UNIVERSITY CENTRE",10005946]
["SOLIHULL METROPOLITAN BOROUGH COUNCIL",10005947]
["SOLVENDIS LTD",10047260]
["SOLVEWAY LIMITED",10025133]
["SOMERSET COUNTY COUNCIL",10005959]
["SOMERSET PASSENGER SOLUTIONS LTD",10086623]
["SOMERSET SKILLS & LEARNING CIC",10042505]
["SORA SERVICES LIMITED",10038391]
["SOUTH & CITY COLLEGE BIRMINGHAM",10005967]
["SOUTH BANK COLLEGES",10003755]
["SOUTH CENTRAL AMBULANCE SERVICE NHS FOUNDATION TRUST",10047255]
["SOUTH DEVON COLLEGE",10005977]
["SOUTH EAST COAST AMBULANCE SERVICE NHS FOUNDATION TRUST",10012756]
["SOUTH ESSEX COLLEGE OF FURTHER AND HIGHER EDUCATION",10005981]
["SOUTH FARNHAM EDUCATIONAL TRUST",10054050]
["SOUTH GLOUCESTERSHIRE AND STROUD COLLEGE",10036143]
["SOUTH GLOUCESTERSHIRE COUNCIL",10005982]
["SOUTH STAFFORDSHIRE COLLEGE",10023526]
["SOUTH TEES HOSPITALS NHS FOUNDATION TRUST",10011088]
["SOUTH THAMES COLLEGES GROUP",10003674]
["SOUTH TYNESIDE COUNCIL",10006000]
["SOUTH WEST ASSOCIATION OF TRAINING PROVIDERS LIMITED",10032119]
["SOUTH WEST CONSTRUCTION ACADEMY LIMITED",10047908]
["SOUTH WEST REGIONAL ASSESSMENT CENTRE LIMITED",10007872]
["SOUTH WEST SKILLS ACADEMY LIMITED",10053529]
["SOUTHAMPTON CITY COLLEGE",10006020]
["SOUTHAMPTON CITY COUNCIL",10006021]
["SOUTHAMPTON ENGINEERING TRAINING ASSOCIATION LIMITED (THE)",10005760]
["SOUTHEND-ON-SEA BOROUGH COUNCIL",10006029]
["SOUTHPORT COLLEGE",10006038]
["SOUTHWARK LONDON BOROUGH COUNCIL",10006042]
["SPAN TRAINING & DEVELOPMENT LIMITED",10009091]
["SPARSHATT TRUCK & VAN LIMITED",10083314]
["SPARSHOLT COLLEGE",10006050]
["SPECIALIST TRADE COURSES LIMITED",10032147]
["SPECSAVERS OPTICAL SUPERSTORES LIMITED",10042132]
["SPORT STRUCTURES EDUCATION COMMUNITY INTEREST COMPANY",10032648]
["SPORTING FUTURES TRAINING (UK) LTD",10046677]
["SPORTSCAPE EDUCATION LTD",10048110]
["SPRINGBOARD SUNDERLAND TRUST",10006086]
["SPRINGFIELD TRAINING LIMITED",10054735]
["SPRINGFIELDS FUELS LIMITED",10010548]
["SPS TRAINING SOLUTIONS LIMITED",10019217]
["SR APPRENTICESHIPS LIMITED",10031146]
["SR SUPPLY CHAIN CONSULTANTS LTD",10036350]
["SSE SERVICES PLC",10023368]
["ST ANDREW'S HEALTHCARE",10067466]
["ST BRENDAN'S SIXTH FORM COLLEGE",10006130]
["ST CATHERINE'S SCHOOL",10016972]
["ST CHARLES CATHOLIC SIXTH FORM COLLEGE",10006135]
["ST DOMINIC'S SIXTH FORM COLLEGE",10006148]
["ST ELIZABETH'S CENTRE",10006159]
["ST ELIZABETH'S SCHOOL",10017680]
["ST FRANCIS XAVIER SIXTH FORM COLLEGE",10008007]
["ST HELENS CHAMBER LIMITED",10006173]
["ST HELENS COLLEGE",10006174]
["ST HELENS METROPOLITAN BOROUGH COUNCIL",10006175]
["ST JOHN RIGBY RC SIXTH FORM COLLEGE",10006195]
["ST JOHN VIANNEY SCHOOL",10017770]
["ST JOHN'S CATHOLIC SPECIALIST SCHOOL, BOSTON SPA",10006283]
["ST JOHN'S RC SCHOOL (ESSEX)",10017742]
["ST JOSEPH'S SPECIALIST TRUST",10017065]
["ST MARTINS CENTRE (ST ROSES SCHOOL)",10040374]
["ST MARY'S COLLEGE",10006226]
["ST MARY'S SCHOOL AND 6TH FORM COLLEGE",10017687]
["ST PIERS SCHOOL",10029323]
["ST ROSE'S SPECIAL SCHOOL",10017088]
["ST VINCENT'S SCHOOL - A SPECIALIST SCHOOL FOR SENSORY IMPAIRMENT AND OTHER NEEDS",10001232]
["ST. GEORGE'S HOSPITAL MEDICAL SCHOOL",10007782]
["ST. JOHN AMBULANCE",10006186]
["ST. JOHN'S COLLEGE (BRIGHTON)",10006199]
["ST. JOHN'S SCHOOL (SEAFORD)",10039936]
["STAFF SELECT LTD",10027272]
["STAFFORDSHIRE COMMISSIONER FIRE AND RESCUE AUTHORITY",10057288]
["STAFFORDSHIRE COUNTY COUNCIL",10006296]
["STAFFORDSHIRE UNIVERSITY",10006299]
["STAMFORD PARK TRUST",10082417]
["STANFORD MANAGEMENT PROCESSES LIMITED",10009970]
["STANMORE COLLEGE",10009439]
["STAR ACADEMIES",10048788]
["STARTING OFF (NORTHAMPTON) LIMITED",10027655]
["STEADFAST TRAINING LTD",10018942]
["STEPPING STONES EDUCATION AND TRAINING LIMITED",10029981]
["STEVE WILLIS TRAINING LTD.",10006326]
["STOCKPORT ENGINEERING TRAINING ASSOCIATION LIMITED(THE)",10006332]
["STOCKPORT METROPOLITAN BOROUGH COUNCIL",10006335]
["STOCKTON-ON-TEES BOROUGH COUNCIL",10006337]
["STOKE ON TRENT COLLEGE",10006349]
["STOKE-ON-TRENT CITY COUNCIL",10001473]
["STRAIGHT A TRAINING LIMITED",10006365]
["STRATHMORE COLLEGE",10006374]
["STRIVE TRAINING (LONDON) LIMITED",10045306]
["STRODE COLLEGE",10006378]
["STUBBING COURT TRAINING LIMITED",10006387]
["SUFFOLK COUNTY COUNCIL",10006399]
["SUFFOLK NEW COLLEGE",10006398]
["SUMMERHOUSE EQUESTRIAN AND TRAINING CENTRE LLP",10043685]
["SUNDERLAND CITY METROPOLITAN BOROUGH COUNCIL",10006407]
["SUNDERLAND ENGINEERING TRAINING ASSOCIATION LIMITED",10006408]
["SUPAJAM EDUCATION IN MUSIC AND MEDIA LIMITED",10045935]
["SUPERDRUG STORES PLC",10020811]
["SURREY COUNTY COUNCIL",10006426]
["SUSSEX PARTNERSHIP NHS FOUNDATION TRUST ",10028410]
["SUTHERLAND HOUSE SCHOOL",10018086]
["SUTTON AND DISTRICT TRAINING LIMITED",10006438]
["SUTTON LONDON BOROUGH COUNCIL",10004000]
["SV ACADEMY LTD",10080825]
["SWALCLIFFE PARK SCHOOL TRUST",10017793]
["SWARM APPRENTICESHIPS C.I.C",10049392]
["SWARTHMORE EDUCATION CENTRE",10006458]
["SWIFTOOL PRECISION ENGINEERING LIMITED",10083564]
["SWINDON BOROUGH COUNCIL",10006462]
["SWINDON COLLEGE",10006463]
["SYNERGY HEALTH (UK) LIMITED",10065332]
["SYSCO BUSINESS SKILLS ACADEMY LIMITED",10013122]
["SYSTEM GROUP LIMITED",10006472]
["SYSTEM PEOPLE LIMITED",10040334]
["T. J. MORRIS LIMITED",10063477]
["T3 TRAINING & DEVELOPMENT LTD",10056500]
["TALBOT HOUSE TRUST",10017915]
["TALENTED TRAINING LIMITED",10049461]
["TAMESIDE COLLEGE",10006494]
["TAMESIDE METROPOLITAN BOROUGH COUNCIL",10006495]
["TARMAC TRADING LIMITED",10023866]
["TCHC GROUP LIMITED",10019581]
["TDR TRAINING LIMITED",10006517]
["TEC PARTNERSHIP",10007938]
["TECHNICAL EDUCATION ACADEMY LIMITED",10054321]
["TECHNICAL PROFESSIONALS LIMITED",10058007]
["TEES VALLEY COLLABORATIVE TRUST",10066120]
["TEES, ESK AND WEAR VALLEYS NHS FOUNDATION TRUST",10006531]
["TEESSIDE UNIVERSITY",10007161]
["TELFORD COLLEGE",10006549]
["TEMP DENT DENTAL AGENCY LIMITED",10006554]
["TEMPEST MANAGEMENT TRAINING LIMITED",10002670]
["TEMPUS LEARNING SERVICES LIMITED",10009200]
["TEMPUS TRAINING LIMITED",10011159]
["TENDEAN LIMITED",10052473]
["TENDRING DISTRICT COUNCIL",10009095]
["TES TRAINING LIMITED",10040915]
["THAMES MARINE ACADEMY LIMITED",10082896]
["THAT NAIL PLACE LIMITED",10028007]
["THATCHAM RESEARCH",10006571]
["THE ACADEMY HAIR & BEAUTY LTD",10006574]
["THE ACTIVE LEARNING TRUST LIMITED",10059514]
["THE APPRENTICE ACADEMY LIMITED",10036578]
["THE APPRENTICESHIP COLLEGE LTD",10047111]
["THE ASHRIDGE (BONAR LAW MEMORIAL) TRUST",10008899]
["THE ASSOCIATION OF HEALTH PROFESSIONS IN OPHTHALMOLOGY",10061461]
["THE BEST CONNECTION GROUP LIMITED",10088194]
["THE BLACKPOOL SIXTH FORM COLLEGE",10000756]
["THE BOSCO CENTRE",10047306]
["THE BROOKE HOUSE SIXTH FORM COLLEGE",10006813]
["THE BUSINESS PORTFOLIO (UK) LIMITED",10044749]
["THE CARE LEARNING CENTRE (ISLE OF WIGHT) LIMITED",10006622]
["THE CHALLENGE ACADEMY TRUST",10064284]
["THE CHARTERED INSTITUTE OF HOUSING",10001328]
["THE CHIEF CONSTABLE OF CITY OF LONDON POLICE",10063360]
["THE CHIEF CONSTABLE OF DERBYSHIRE ",10063358]
["THE CHIEF CONSTABLE OF GREATER MANCHESTER",10063389]
["THE CHIEF CONSTABLE OF HAMPSHIRE",10063350]
["THE CHIEF CONSTABLE OF LEICESTERSHIRE ",10063345]
["THE CHIEF CONSTABLE OF MERSEYSIDE ",10063343]
["THE CHIEF CONSTABLE OF NORTHAMPTONSHIRE ",10063341]
["THE CHIEF CONSTABLE OF NORTHUMBRIA ",10063340]
["THE CHIEF CONSTABLE OF NOTTINGHAMSHIRE ",10063337]
["THE CHIEF CONSTABLE OF SOUTH YORKSHIRE",10063335]
["THE CHIEF CONSTABLE OF SURREY ",10063332]
["THE CHIEF CONSTABLE OF SUSSEX ",10063331]
["THE CHIEF CONSTABLE OF THAMES VALLEY ",10063330]
["THE CHIEF CONSTABLE OF WEST YORKSHIRE ",10063326]
["THE CHILD CARE COMPANY (OLD WINDSOR) LIMITED",10022788]
["THE CHILDREN'S TRUST SCHOOL",10017703]
["THE CITY LITERARY INSTITUTE",10001463]
["THE CITY OF LIVERPOOL COLLEGE",10003955]
["THE CODERS GUILD LTD",10058030]
["THE COLLEGE OF ANIMAL WELFARE LIMITED",10001539]
["THE COLLEGE OF RICHARD COLLYER IN HORSHAM",10001550]
["THE COLLEGE OF WEST ANGLIA",10007916]
["THE COLLEGES' PARTNERSHIP LIMITED",10020932]
["THE CONSTELLATION TRUST",10058237]
["THE CONSTRUCTION SKILLS PEOPLE LTD",10030802]
["THE DAVID LEWIS CENTRE",10001867]
["THE DEAN TRUST",10055366]
["THE DERBYSHIRE NETWORK",10006651]
["THE DEVELOPMENT FUND LIMITED",10031543]
["THE DEVELOPMENT MANAGER LTD",10020884]
["THE EDUCATION AND SKILLS PARTNERSHIP LTD",10052437]
["THE EDUCATION TRAINING COLLECTIVE",10006341]
["THE EDUCATIONWISE ACADEMY LTD",10056839]
["THE ELECTRONICS GROUP LIMITED",10055821]
["THE ELLIOT FOUNDATION ACADEMIES TRUST",10059861]
["THE EMPLOYERS FORUM LTD",10021133]
["THE ENGAGEMENT COACH LIMITED",10085877]
["THE EQUESTRIAN LEARNING ACADEMY LIMITED",10034037]
["THE FEDERATION OF GROUNDWORK TRUSTS",10021314]
["THE FERNANDES AND ROSARIO CONSULTING LIMITED",10066604]
["THE FINANCE AND MANAGEMENT BUSINESS SCHOOL LIMITED",10028342]
["THE FOOTBALL ASSOCIATION PREMIER LEAGUE LIMITED",10002527]
["THE FOOTBALL LEAGUE (COMMUNITY) LIMITED",10038939]
["THE FORTUNE CENTRE OF RIDING THERAPY",10002546]
["THE FORWARD TRUST",10029120]
["THE GO-AHEAD GROUP PLC",10062971]
["THE GROWTH COMPANY LIMITED",10004177]
["THE HAIR ACADEMY LIMITED",10083304]
["THE HENLEY COLLEGE",10003011]
["THE INDEPENDENT WINDSCREEN ACADEMY LTD",10024591]
["THE INSTITUTE OF REVENUES, RATING AND VALUATION",10022689]
["THE IT SKILLS MANAGEMENT COMPANY LIMITED",10042241]
["THE JCB ACADEMY",10030656]
["THE LEARNING CURVE (VOLUNTARY SECTOR DEVELOPMENT)",10006734]
["THE LEARNING FOUNDRY LIMITED",10000201]
["THE LEARNING PARTNERSHIP FOR CORNWALL AND THE ISLES OF SCILLY LIMITED",10006735]
["THE LINK TRAINING ACADEMY LIMITED",10042593]
["THE LONDON COLLEGE OF BEAUTY THERAPY LIMITED",10004013]
["THE LONDON HAIRDRESSING APPRENTICESHIP ACADEMY LIMITED",10035171]
["THE LONDON INSTITUTE OF BANKING & FINANCE",10008289]
["THE MANAGEMENT ACADEMY LTD",10058059]
["THE MARINE SOCIETY COLLEGE OF THE SEA",10004204]
["THE MERIDIAN CENTRE",10020733]
["THE MICHAEL TIPPETT COLLEGE",10067866]
["THE MOUNT CAMPHILL COMMUNITY LIMITED",10004444]
["THE MTC - ADVANCED MANUFACTURING TRAINING CENTRE LIMITED",10049737]
["THE NATIONAL CENTRE FOR YOUNG PEOPLE WITH EPILEPSY CHARITABLE TRUST",10004502]
["THE NATIONAL COLLEGE FOR HIGH SPEED RAIL LIMITED",10061475]
["THE NATIONAL LOGISTICS ACADEMY LTD",10061968]
["THE NEWCASTLE UPON TYNE HOSPITALS NHS FOUNDATION TRUST",10010912]
["THE NORTHERN SCHOOL OF ART",10001503]
["THE NORTHUMBERLAND COUNCIL",10004762]
["THE NUMBER 4 GROUP LIMITED",10033193]
["THE NVQ TRAINING CENTRE LIMITED",10026397]
["THE OCM GROUP LIMITED",10082027]
["THE OLDHAM COLLEGE",10006770]
["THE OPEN UNIVERSITY",10007773]
["THE OPPORTUNITY GROUP LTD",10061440]
["THE ORGANISATION FOR PROFESSIONALS IN REGULATORY AFFAIRS LIMITED",10032280]
["THE OXFORD SCHOOL OF DRAMA TRUST",10043485]
["THE PARK COLLEGE",10086392]
["THE PENNINE ACUTE HOSPITALS NATIONAL HEALTH SERVICE TRUST",10028366]
["THE PHOENIX AUTISM TRUST",10067932]
["THE PORTLAND TRAINING COMPANY LIMITED",10046979]
["THE PRESS ASSOCIATION LIMITED",10024217]
["THE PRIME COLLEGE LIMITED",10055915]
["THE PRIORY FEDERATION OF ACADEMIES",10058228]
["THE PROCUREMENT ACADEMY LIMITED",10064141]
["THE RECALVI ENTERPRISE LTD",10039140]
["THE REYNOLDS GROUP LIMITED",10006797]
["THE RIDGE EMPLOYABILITY COLLEGE",10057205]
["THE ROMSEY SCHOOL",10034767]
["THE ROYAL ARTILLERY CENTRE FOR PERSONAL DEVELOPMENT",10005546]
["THE SIDE BY SIDE PARTNERSHIP LIMITED",10030265]
["THE SIXTH FORM COLLEGE COLCHESTER",10005881]
["THE SKILLS CENTRE LONDON LIMITED",10023042]
["THE SKILLS NETWORK LIMITED",10029308]
["THE SKILLS PARTNERSHIP LIMITED",10005894]
["THE SMB GROUP",10000952]
["THE SOCIETY OF LOCAL AUTHORITY CHIEF EXECUTIVES AND SENIOR MANAGERS (SOLACE GROUP) LTD",10062076]
["THE SPECIALISTS HUB LTD",10085751]
["THE SPENCER ACADEMIES TRUST",10058352]
["THE SQUARE METRE LIMITED",10046777]
["THE TRAFFORD COLLEGE GROUP",10005998]
["THE TRAINING & RECRUITMENT PARTNERSHIP LIMITED",10006986]
["THE TRAINING INITIATIVE GROUP LTD",10064513]
["THE TRAINING PLACE OF EXCELLENCE LIMITED",10032402]
["THE UNIVERSITY OF BATH",10007850]
["THE UNIVERSITY OF BIRMINGHAM",10006840]
["THE UNIVERSITY OF BOLTON",10006841]
["THE UNIVERSITY OF BRADFORD",10007785]
["THE UNIVERSITY OF BUCKINGHAM",10007787]
["THE UNIVERSITY OF CHICHESTER",10007137]
["THE UNIVERSITY OF CUMBRIA",10007842]
["THE UNIVERSITY OF EAST ANGLIA",10007789]
["THE UNIVERSITY OF ESSEX",10007791]
["THE UNIVERSITY OF HUDDERSFIELD",10007148]
["THE UNIVERSITY OF HULL",10007149]
["THE UNIVERSITY OF KENT",10007150]
["THE UNIVERSITY OF LANCASTER",10007768]
["THE UNIVERSITY OF LAW LIMITED",10039956]
["THE UNIVERSITY OF LEEDS",10007795]
["THE UNIVERSITY OF LIVERPOOL",10006842]
["THE UNIVERSITY OF MANCHESTER",10007798]
["THE UNIVERSITY OF READING",10007802]
["THE UNIVERSITY OF SHEFFIELD",10007157]
["THE UNIVERSITY OF WARWICK",10007163]
["THE UNIVERSITY OF WEST LONDON",10006566]
["THE UNIVERSITY OF WESTMINSTER",10007165]
["THE VOCATIONAL ACADEMY ESSEX LTD",10062202]
["THE VOLUNTARY AND COMMUNITY SECTOR LEARNING AND SKILLS CONSORTIUM",10004788]
["THE WEST MIDLANDS CREATIVE ALLIANCE LIMITED",10007424]
["THE WHITE ROSE SCHOOL OF BEAUTY AND COMPLEMENTARY THERAPIES LIMITED",10007484]
["THE WILTSHIRE COUNCIL",10007528]
["THE WINDSOR FOREST COLLEGES GROUP",10002107]
["THE WKCIC GROUP",10007455]
["THE WORLD OF WORK LIMITED",10038823]
["THELIGHTBULB LTD",10003919]
["THERMAL INSULATION CONTRACTORS ASSOCIATION",10003345]
["THINK EMPLOYMENT LIMITED",10001013]
["THORNBECK COLLEGE - NORTH EAST AUTISM SOCIETY",10009777]
["THREE DIMENSIONAL TRAINING LIMITED",10057616]
["THURROCK COUNCIL",10006907]
["TIME TRAINING LIMITED",10041629]
["TIRO TRAINING LTD",10023538]
["TMP STUDIOS CIC",10044455]
["TOGETHER TRAINING LTD",10062612]
["TONI & GUY UK TRAINING LIMITED",10023415]
["TOOK US A LONG TIME LIMITED",10061789]
["TORBAY COUNCIL",10006946]
["TOTAL PEOPLE LIMITED",10021755]
["TOTAL TRAINING COMPANY (UK) LIMITED",10045305]
["TOTAL TRAINING PROVISION LIMITED",10047356]
["TOWER COLLEGE OF FURTHER AND HIGHER EDUCATION LONDON LIMITED",10022570]
["TOWER HAMLETS LONDON BOROUGH COUNCIL",10006964]
["TQ EDUCATION AND TRAINING LIMITED",10002806]
["TRADE SKILLS4U LTD",10010513]
["TRAFFORD METROPOLITAN BOROUGH COUNCIL",10006977]
["TRAIN 2 TRAIN LIMITED",10033640]
["TRAIN 4 LIMITED",10038368]
["TRAIN TOGETHER LIMITED",10032052]
["TRAIN WITH PRIDE LIMITED",10033154]
["TRAIN4WORK TRAINING SERVICES LIMITED",10061639]
["TRAIN'D UP RAILWAY RESOURCING LIMITED",10010672]
["TRAINING 2000 LIMITED",10006987]
["TRAINING AIM ACADEMY LTD",10084461]
["TRAINING ASSESSMENT & CONSULTANCY SERVICES LIMITED",10020244]
["TRAINING EVENT SAFETY SOLUTIONS LTD",10031093]
["TRAINING PLUS (MERSEYSIDE) LIMITED",10007013]
["TRAINING SERVICES 2000 LTD",10007015]
["TRAINING SKILLS UK LTD",10052815]
["TRAINING STRATEGIES LTD.",10027873]
["TRAINING WORKS (NW) LTD",10048848]
["TRAININGPLATFORM LTD",10042166]
["TRAINPLUS LTD",10026331]
["TRANS-PLANT TRAINING LIMITED",10021850]
["TRANSWORLD PUBLICATIONS SERVICES LIMITED",10005268]
["TRAVIS PERKINS PLC",10027498]
["TREEHOUSE SCHOOL",10016076]
["TRELOAR COLLEGE",10007031]
["TRELOAR SCHOOL",10039935]
["TRIAGE CENTRAL LIMITED",10024836]
["TRINITY POST 16 SOLUTIONS LIMITED",10056799]
["TRINITY SPECIALIST COLLEGE LIMITED",10032898]
["TRN (TRAIN) LTD.",10000082]
["TRS TRAINING LIMITED",10039242]
["TRURO AND PENWITH COLLEGE",10007063]
["TTE TECHNICAL (UK) LTD.",10029768]
["TTE TRAINING LIMITED",10004589]
["TUI UK LIMITED",10004123]
["TVS EDUCATION LIMITED",10043482]
["TWA LEAN CONSULTING LIMITED",10054584]
["TYNE AND WEAR FIRE AND RESCUE AUTHORITY",10028200]
["TYNE COAST COLLEGE",10005999]
["TYNE NORTH TRAINING LIMITED",10007100]
["UCKFIELD COLLEGE",10007111]
["UGANDA COMMUNITY RELIEF ASSOCIATION",10011035]
["UK COLLEGE OF BUSINESS LIMITED",10047502]
["UK POWER NETWORKS (OPERATIONS) LIMITED",10046674]
["UK SKILLS ACADEMY LIMITED",10054946]
["UK TRAINING & DEVELOPMENT LIMITED",10007123]
["UKFAST.NET LIMITED",10042795]
["ULTIMA SKILLS LTD",10034050]
["UMBRELLA TRAINING AND EMPLOYMENT SOLUTIONS LIMITED",10039668]
["UNIFIED SEEVIC PALMER'S COLLEGE",10005736]
["UNIPER TECHNOLOGIES LIMITED",10056694]
["UNIPRES (UK) LIMITED",10048106]
["UNIQUE TRAINING SOLUTIONS LIMITED",10019736]
["UNISERVE HOLDINGS LIMITED",10085521]
["UNITED CHURCH SCHOOLS TRUST",10087159]
["UNITED COLLEGES GROUP",10001476]
["UNITED RESPONSE",10010025]
["UNITED UTILITIES WATER LIMITED",10040525]
["UNIVERSAL SKILLS CENTRE LIMITED",10007292]
["UNIVERSAL VIBES LIMITED",10065571]
["UNIVERSITY ACADEMY HOLBEACH",10034999]
["UNIVERSITY CENTRE QUAYSIDE LIMITED",10025197]
["UNIVERSITY COLLEGE BIRMINGHAM",10000712]
["UNIVERSITY COLLEGE LONDON",10007784]
["UNIVERSITY COLLEGE LONDON HOSPITALS NHS FOUNDATION TRUST",10061646]
["UNIVERSITY COLLEGE OF ESTATE MANAGEMENT",10008173]
["UNIVERSITY FOR THE CREATIVE ARTS",10006427]
["UNIVERSITY HOSPITAL BIRMINGHAM NHS FOUNDATION TRUST",10010623]
["UNIVERSITY HOSPITAL PLYMOUTH NHS TRUST",10030285]
["UNIVERSITY HOSPITAL SOUTHAMPTON NHS FOUNDATION TRUST",10022805]
["UNIVERSITY HOSPITALS BRISTOL NHS FOUNDATION TRUST",10029097]
["UNIVERSITY HOSPITALS OF DERBY AND BURTON NHS FOUNDATION TRUST",10084937]
["UNIVERSITY HOSPITALS OF LEICESTER NATIONAL HEALTH SERVICE TRUST",10022721]
["UNIVERSITY OF BEDFORDSHIRE",10007152]
["UNIVERSITY OF BRIGHTON",10000886]
["UNIVERSITY OF BRIGHTON ACADEMIES TRUST",10032385]
["UNIVERSITY OF CAMBRIDGE",10007788]
["UNIVERSITY OF CENTRAL LANCASHIRE",10007141]
["UNIVERSITY OF CHESTER",10007848]
["UNIVERSITY OF DERBY",10007851]
["UNIVERSITY OF DURHAM",10007143]
["UNIVERSITY OF EAST LONDON",10007144]
["UNIVERSITY OF EXETER",10007792]
["UNIVERSITY OF GLOUCESTERSHIRE",10007145]
["UNIVERSITY OF GREENWICH",10007146]
["UNIVERSITY OF HERTFORDSHIRE",10007147]
["UNIVERSITY OF KEELE",10007767]
["UNIVERSITY OF LINCOLN",10007151]
["UNIVERSITY OF NEWCASTLE UPON TYNE",10007799]
["UNIVERSITY OF NORTHAMPTON, THE",10007138]
["UNIVERSITY OF NORTHUMBRIA AT NEWCASTLE",10001282]
["UNIVERSITY OF NOTTINGHAM, THE",10007154]
["UNIVERSITY OF PLYMOUTH",10007801]
["UNIVERSITY OF PORTSMOUTH",10007155]
["UNIVERSITY OF SALFORD, THE",10007156]
["UNIVERSITY OF SOUTH WALES/PRIFYSGOL DE CYMRU",10007793]
["UNIVERSITY OF ST MARK & ST JOHN",10037449]
["UNIVERSITY OF STRATHCLYDE",10007805]
["UNIVERSITY OF SUFFOLK",10014001]
["UNIVERSITY OF SUNDERLAND",10007159]
["UNIVERSITY OF THE ARTS, LONDON",10007162]
["UNIVERSITY OF THE WEST OF ENGLAND, BRISTOL",10007164]
["UNIVERSITY OF ULSTER",10007807]
["UNIVERSITY OF WALES: TRINITY SAINT DAVID",10007858]
["UNIVERSITY OF WINCHESTER",10003614]
["UNIVERSITY OF WOLVERHAMPTON",10007166]
["UNIVERSITY OF WORCESTER",10007139]
["UNIVERSITY OF YORK",10007167]
["URDANG SCHOOLS LIMITED",10009099]
["UTILITY & CONSTRUCTION TRAINING LIMITED",10022362]
["V LEARNING NET",10003841]
["VALKYRIE SUPPORT SERVICES LTD",10026094]
["VALLEY COLLEGE",10084353]
["VAN ELLE LIMITED",10055748]
["VARNDEAN COLLEGE",10007212]
["VARSITY TRAINING LIMITED",10049233]
["VENTURE FORWARD LIMITED",10023229]
["VEOLIA ENVIRONNEMENT DEVELOPMENT CENTRE LIMITED",10014199]
["VERITY HEALTHCARE LIMITED",10047028]
["VICTORIA COLLEGE LTD",10067359]
["VICTORIA EDUCATION CENTRE",10016047]
["VIRGIN ACTIVE LIMITED",10038140]
["VIRGIN ATLANTIC AIRWAYS LIMITED",10062800]
["VIRGIN CARE SERVICES LIMITED",10037401]
["VIRTUAL ALLIANCE LIMITED",10026108]
["VISION EXPRESS (UK) LIMITED",10042126]
["VISION REHABILITATION TRAINING LTD",10083945]
["VISION TRAINING (NORTH EAST) LIMITED",10025700]
["VITA SKILLS LIMITED",10046866]
["VMZONE LTD",10061637]
["VOCATIONAL SKILLS SOLUTIONS LIMITED",10042819]
["VOCATIONAL TRAINING SERVICES CARE SECTOR LIMITED",10009450]
["VOGAL GROUP LIMITED",10043126]
["VOYAGE GROUP LIMITED",10030462]
["VQ SOLUTIONS LTD",10022405]
["VSS TRAINING AND DEVELOPMENT LIMITED",10045119]
["W S TRAINING LTD.",10007659]
["WAKEFIELD CITY COUNCIL",10007291]
["WAKEFIELD COLLEGE",10007289]
["WALES ENGLAND CARE LTD",10064408]
["WALSALL COLLEGE",10007315]
["WALSALL METROPOLITAN BOROUGH COUNCIL",10007318]
["WALTHAM FOREST CHAMBER OF COMMERCE TRAINING TRUST LIMITED",10007320]
["WALTHAM FOREST COLLEGE",10007321]
["WALTHAM FOREST LONDON BOROUGH COUNCIL",10007322]
["WALTHAM INTERNATIONAL COLLEGE LIMITED",10029843]
["WANDSWORTH LONDON BOROUGH COUNCIL",10004002]
["WARGRAVE HOUSE SCHOOL",10015778]
["WARRINGTON & VALE ROYAL COLLEGE",10007339]
["WARRINGTON BOROUGH COUNCIL",10007336]
["WARWICKSHIRE COLLEGE",10007859]
["WARWICKSHIRE COUNTY COUNCIL",10007348]
["WARWICKSHIRE GARAGE & TRANSPORT GROUP TRAINING ASSOCIATION LIMITED",10007349]
["WATERTON ACADEMY TRUST",10060843]
["WATERTRAIN LIMITED",10030871]
["WAVERLEY BOROUGH COUNCIL",10008986]
["WDR LIMITED",10008883]
["WE ARE MOMENTUM LIMITED",10083812]
["WEALDEN LEISURE LIMITED",10030984]
["WEBS TRAINING LIMITED",10007375]
["WEIR TRAINING LIMITED",10007377]
["WELBECK, THE DEFENCE SIXTH FORM COLLEGE",10010497]
["WELCOME SKILLS LIMITED",10029829]
["WELL ASSOCIATES LIMITED",10031326]
["WEST BERKSHIRE COUNCIL",10007398]
["WEST BERKSHIRE TRAINING CONSORTIUM",10007402]
["WEST HERTS COLLEGE",10007417]
["WEST KENT AND ASHFORD COLLEGE",10007419]
["WEST KIRBY RESIDENTIAL SCHOOL",10015673]
["WEST LONDON SKILLS TRAINING LIMITED",10046803]
["WEST MIDLANDS AMBULANCE SERVICE NHS FOUNDATION TRUST",10041501]
["WEST NOTTINGHAMSHIRE COLLEGE",10007427]
["WEST SUFFOLK COLLEGE",10007431]
["WEST SUSSEX COUNTY COUNCIL",10007432]
["WEST THAMES COLLEGE",10007434]
["WEST YORKSHIRE LEARNING PROVIDERS LTD",10008591]
["WESTCOUNTRY SCHOOLS TRUST",10057945]
["WESTERN POWER DISTRIBUTION (SOUTH WEST) PLC",10007444]
["WESTMINSTER CITY COUNCIL",10001464]
["WESTON COLLEGE OF FURTHER AND HIGHER EDUCATION",10007459]
["WEYMOUTH COLLEGE",10007469]
["WHITBY & DISTRICT FISHING INDUSTRY TRAINING SCHOOL LIMITED",10007477]
["WHITE ROCKS FARM LIMITED",10041294]
["WHITE ROSE TRAINING LIMITED",10026128]
["WHITEHEAD-ROSS EDUCATION AND CONSULTING LIMITED",10040788]
["WIGAN AND LEIGH COLLEGE",10007500]
["WIGAN METROPOLITAN BOROUGH COUNCIL",10007502]
["WILBERFORCE COLLEGE",10007503]
["WILDES EDUCATION LIMITED",10037682]
["WILLIAM HENRY SMITH SCHOOL",10015753]
["WILLOW GREEN",10088608]
["WILSON STUART UNIVERSITY COLLEGE BIRMINGHAM PARTNERSHIP TRUST",10056854]
["WILTSHIRE COLLEGE AND UNIVERSITY CENTRE",10007527]
["WILTSHIRE TRANSPORT TRAINING & DEVELOPMENT LIMITED",10008024]
["WINCANTON GROUP LIMITED",10019780]
["WINNOVATION LIMITED",10029676]
["WINSTANLEY COLLEGE",10007546]
["WIRRAL METROPOLITAN BOROUGH COUNCIL",10004327]
["WIRRAL METROPOLITAN COLLEGE",10007553]
["WISER ACADEMY LIMITED",10055749]
["WMC TRAINING LTD",10038165]
["WOKING COLLEGE",10066132]
["WOKINGHAM COUNCIL",10007567]
["WOLVERHAMPTON CITY COUNCIL",10007576]
["WOMEN'S TECHNOLOGY TRAINING LIMITED",10007594]
["WOODBRIDGE COLLEGE",10067747]
["WOODHOUSE COLLEGE",10007609]
["WOODLAND GLOBAL LTD",10084814]
["WOODPECKER COURT YOUTH ACTIVITIES LIMITED",10057307]
["WOODSPEEN TRAINING LIMITED",10000028]
["WORCESTERSHIRE COUNTY COUNCIL",10007623]
["WORKERS' EDUCATIONAL ASSOCIATION",10007364]
["WORKFORCE TRAINING & DEVELOPMENT LTD",10027269]
["WORKING MEN'S COLLEGE CORPORATION",10007636]
["WORKPAYS LIMITED",10037289]
["WOW HAIR ACADEMY LIMITED",10065400]
["WQE AND REGENT COLLEGE GROUP",10007671]
["WRITTLE UNIVERSITY COLLEGE",10007657]
["WYKE SIXTH FORM COLLEGE",10007673]
["XAVERIAN COLLEGE",10007682]
["XAVIER CATHOLIC EDUCATION TRUST",10057399]
["XTOL DEVELOPMENT SERVICES LIMITED",10041149]
["YEOVIL COLLEGE",10007696]
["YH TRAINING SERVICES LIMITED",10007697]
["YMCA DERBYSHIRE.",10007698]
["YORK COLLEGE",10007709]
["YORK ST JOHN UNIVERSITY",10007713]
["YORK TEACHING HOSPITAL NHS FOUNDATION TRUST",10019288]
["YORKSHIRE AMBULANCE SERVICE NATIONAL HEALTH SERVICE TRUST",10012754]
["YORKSHIRE COLLEGE OF BEAUTY LIMITED",10008699]
["YORKSHIRE FITNESS AND LEISURE LIMITED",10037825]
["YORKSHIRE TRAINING PARTNERSHIP LIMITED",10007722]
["YOUNGSAVE COMPANY LIMITED",10004370]
["YUZU TRAINING LTD",10046679]
["ZENITH PEOPLE LIMITED",10041127]

{"sheet":"Summary","index":4,"n_rows":16,"n_cols":22,"rows_kept":16,"cut":false,"hidden":true,"merged":[]}
["First time"]
["Provider Name","UKPRN","Request type","Funding stream","Do you currently hold an ESFA funded AEB allocation?","Is this request for direct delivery or subcontracted?","Value","Volume","Q1","Q2","Q3","Q4","Name","Position in Organisation","Date of Request","Authority"]
[{"$f":"#REF!","v":{"$error":"#REF!"}},{"$f":"#REF!","v":{"$error":"#REF!"}},{"$f":"#REF!","v":{"$error":"#REF!"}},{"$f":"#REF!","v":{"$error":"#REF!"}},{"$f":"'Request Form'!H19","v":0},{"$f":"'Request Form'!H26","v":0},{"$f":"'Request Form'!D32","v":0},{"$f":"'Request Form'!D33","v":0},{"$f":"'Request Form'!B44","v":0},{"$f":"'Request Form'!B48","v":0},{"$f":"'Request Form'!B52","v":0},{"$f":"'Request Form'!B56","v":0},{"$f":"'Request Form'!C64","v":0},{"$f":"'Request Form'!C66","v":0},{"$f":"'Request Form'!C68","v":"00:00:00"},{"$f":"'Request Form'!J62","v":"✖"}]
[]
[]
[]
[]
["Top Up"]
["Provider Name","UKPRN","Request type","Funding stream","Do you currently hold an ESFA funded AEB allocation?","Is this request for direct delivery or subcontracted?","Current Value £","Request £","New Value £","Volume","Q1","Q2","Q3","Q4","Name","Position in Organisation","Date of Request","Authority"]
[{"$f":"#REF!","v":{"$error":"#REF!"}},{"$f":"#REF!","v":{"$error":"#REF!"}},{"$f":"#REF!","v":{"$error":"#REF!"}},{"$f":"#REF!","v":{"$error":"#REF!"}},{"$f":"#REF!","v":{"$error":"#REF!"}},{"$f":"#REF!","v":{"$error":"#REF!"}},{"$f":"#REF!","v":{"$error":"#REF!"}},{"$f":"#REF!","v":{"$error":"#REF!"}},{"$f":"#REF!","v":{"$error":"#REF!"}},{"$f":"#REF!","v":{"$error":"#REF!"}},{"$f":"#REF!","v":{"$error":"#REF!"}},{"$f":"#REF!","v":{"$error":"#REF!"}},{"$f":"#REF!","v":{"$error":"#REF!"}},{"$f":"#REF!","v":{"$error":"#REF!"}},{"$f":"#REF!","v":{"$error":"#REF!"}},{"$f":"#REF!","v":{"$error":"#REF!"}},{"$f":"#REF!","v":{"$error":"#REF!"}},{"$f":"#REF!","v":{"$error":"#REF!"}}]
[]
[]
[]
["16-18 Traineeships"]
["Provider Name","UKPRN","Funding stream","Do you currently hold an ESFA contract or funding agreement to deliver in 2021/22?","Do you have a 19 to 24 (procured) 2021/22 traineeship contract?","Do you currently have a contract to deliver 16-19 Study Programme or 16-18 standalone traineeship activity?","What is your current Ofsted grade?","What is the your latest financial health grade assessed by the ESFA?","Have you been issued with a notice to improve or do you have contractual obligations prohibiting you from growth?","Have you been subject to an investigation for breach of contract and/or failed audit in the past 3 years?","Is this request for direct delivery or through a subcontract?","Request","Volume","Q1","Q2","Q3","Q4","Name","Position in Organisation","Date of Request","emails","Authority"]
[{"$f":"'Request Form'!$C$9","v":0},{"$f":"'Request Form'!$C$11","v":""},{"$f":"'Request Form'!$D$18","v":"16-18 Traineeships (Only)"},{"$f":"'Request Form'!H19","v":0},{"$f":"'Request Form'!H20","v":0},{"$f":"'Request Form'!H21","v":0},{"$f":"'Request Form'!H22","v":0},{"$f":"'Request Form'!H23","v":0},{"$f":"'Request Form'!H24","v":0},{"$f":"'Request Form'!H25","v":0},{"$f":"'Request Form'!H26","v":0},{"$f":"'Request Form'!D32","v":0},{"$f":"'Request Form'!D33","v":0},{"$f":"'Request Form'!B44","v":0},{"$f":"'Request Form'!B48","v":0},{"$f":"'Request Form'!B52","v":0},{"$f":"'Request Form'!B56","v":0},{"$f":"'Request Form'!C64","v":0},{"$f":"'Request Form'!C66","v":0},{"$f":"'Request Form'!C68","v":"00:00:00"},{"$f":"'Request Form'!C70","v":0},{"$f":"'Request Form'!H62","v":0}]